Workbook

Sheet Instructions
B2: LEA EDFacts Edit Check and Data Display Tool - IDEA Personnel
B3: The LEA EDFacts Edit Check and Data Display Tool - IDEA Personnel is designed for states to use as they prepare their data for submission via EDFacts. States use this tool to check LEA-level EDFacts data files FS070, FS099, and FS112. The tool identifies format, validation, and other errors in category sets or subtotals. State staff also can use this tool as a data display in their work with LEAs, including monitoring, performing desk audits of LEA data, and providing technical assistance and professional development to LEA staff. States cannot submit data using this tool. They must submit all data following the guidelines provided in the data file specifications at
B4: The EDFacts Initiative
B6: Please read the following instructions before using this tool:
B7: 1. | C7: To begin using this tool, you must enter the state’s LEA identifiers and LEA names in the LEA Identifiers & Names tab. You will use this list in the drop-down menu in the Select LEA tab. You can copy and paste the state’s LEA identifiers and LEA names into the table in the LEA Identifiers & Names tab from an existing list such as the state’s LEA-level Directory (FS029) file columns, LEA Identifier (State) and Education Entity Name.
C9: The LEA names will appear in the drop-down list in the order in which they are listed on the LEA Identifiers & Names tab. Please consider alphabetizing your list of LEA names and identifiers before pasting them into the table on that tab.
B11: 2. | C11: To select, copy, and paste data from your LEA FS070 EDFacts file into the tool, do the following:
C12: a. Open your LEA-level FS070 – Special Education Teachers (FTE) data file in Excel (or similar application).
C13: b. Select and copy all rows and columns from the EDFacts data file. i. Include the EDFacts data file header row and filler columns. ii. Do NOT use the "Select All" function in Excel.
C14: c. Paste the selected data to cell A11 in the Special Ed Teachers (FS070) tab in this tool.
C15: d. In the Special Ed Teachers (FS070) tab, click the "Check Data Format" button to run all format checks. If there are format errors, you will see pop-up boxes containing important information about the errors.
C17: The “Check Data Format” button identifies the following format errors: i. compares the text in the File Type cell in the header row (in cell A11) to the required value for the LEA FS070 file, LEA SPECIAL EDUCATION TEACHER; ii. compares the number of records entered in the file header row (in cell B11) to confirm it matches the actual number of rows of data in the file; iii. checks the school year date format in the header row (in cell E11); iv. checks the filler columns for any characters (all filler columns should be blank); and v. checks the file record number, state code, state agency number, LEA identifier (state), table name, total indicator, and FTE columns for blanks (there should be no blanks in these columns).
C19: e. To delete the data pasted into the Special Ed Teachers (FS070) tab, click the "Clear Data" button.
B20: 3. | C20: Repeat steps 2.a. through 2.e. for the other two IDEA personnel data files, LEA FS099 - Special Education Related Services Personnel and LEA FS112 - Special Education Paraprofessionals.
B21: 4. | C21: To review data for each LEA, click on the Select LEA tab.
C22: a. The "Select LEA" box should have the names of the LEAs that you copied and pasted in the LEA Identifiers & Names tab. Open the "Select LEA" box by clicking on the down arrow to the right of the box.
C23: b. Select the LEA you would like to analyze or review; then click the “Select LEA Data” button to the right of the selected LEA. The rows from the EDFacts file that match that LEA's state identifier (code) will populate in the Excel sheet.
C24: c. To select another LEA, first click on the “Clear ‘Select LEA’ Field” button to clear the current LEA out of the yellow selection box. Once the LEA has been cleared, the full list of LEAs will be available again in the "Select LEA" box when you click on the down arrow. Select another LEA, click the “Select LEA Data” button, and the table will update with the newly selected LEA’s data.
C25: d. To quickly search for an LEA in the drop-down list in the “Select LEA” field, click on the yellow box (C6), type in three or more letters or numbers that appear in the name of the LEA or group of LEAs you want to locate. Next, click the carat beside the yellow box (C6) to see the list of LEA names that contain the letters or numbers you entered.
B27: 5. | C27: To check errors for each LEA, follow these steps:
C28: a. On the Select LEA tab, review the “Data quality checks" table to the right of the data displayed for the selected LEA to see (1) lists of data category sets and subtotals not included in the FS070 file for the selected LEA, (2) duplicate rows, and (3) rows that contain invalid values.
C29: b. To facilitate locating data errors in the EDFacts file, data with errors displayed in the Error Messages, Dashboard, and Edit Check Details tabs are highlighted in red and hyperlinked. Use the hyperlinked data to trace each highlighted error through the Error Messages, Dashboard, and Edit Check Details tabs back to the EDFacts data file in the Select LEA tab where the error originates.
C30: c. Error messages in the Error Messages tab indicate computational or other errors in reporting only for the LEA selected in the Select LEA tab. Please correct all errors before submitting the data file to the U.S. Department of Education via the EDFacts Submission System.
C31: d. Please note, this tool does not identify the state-specific differences in EDFacts file contents. State-specific differences noted in the EDFacts IDEA State Supplemental Survey (SSS) may show up as error messages in this tool.
B33: 6. | C33: Review and address each triggered format check and error message. If you need to make changes to the data, make these changes in the corresponding data system and/or EDFacts file. Then check the corrected IDEA Personnel files by carefully pasting the updated data into the FS070, FS099, and FS112 tabs. Do NOT make data modifications directly in the LEA Edit Check Tool. You must make these changes in the EDFacts file that you will submit, then copy them from that file back into the LEA Edit Check Tool to recheck the data and confirm correction.
B35: If you would like assistance using this tool, please contact your IDC State Liaison or email | H35: IDEAdata@westat.com
B37: Please note, this tool is currently not 508 accessible. If you need assistance with the use of this tool, please contact your IDC State Liaison or email
B38: IDEAdata@westat.com
B40: The IDEA Data Center (IDC) created this publication under U.S. Department of Education, Office of Special Education Programs grant number H373Y190001. Richelle Davis and Rebecca Smith serve as the project officers.
B43: The views expressed herein do not necessarily represent the positions or policies of the U.S. Department of Education. No official endorsement by the U.S. Department of Education of any product, commodity, service, or enterprise mentioned in this publication is intended or should be inferred. This product is in the public domain. Authorization to reproduce it in whole or in part is granted.
B45: Westat is the lead organization for IDC. For more information about the center’s work and its partners, see
B46: ideadata.org
B48: Version Date: September 2021
B50: Suggested Citation:
B51: Long, T., Thacker, C., and Edora, F. (2021, September). LEA EDFacts Edit Check and Data Display Tool - IDEA Personnel. IDEA Data Center. Rockville, MD: Westat.

Sheet LEA Identifiers & Names
A1: LEA Identifiers and Names
B3: Instructions: Enter your state's LEA identifiers and names below. You will use this list in the drop-down menu on the Select LEA tab to select the name of the LEA for data-display in the tables on the Error Messages tab, Data Summary tab, and Edit Check Details tab. The LEA identifiers must match those you used in your LEA FS070, FS099, and FS112 files. The LEA names will appear in the drop-down list in the order in which you list them below. Please consider alphabetizing your list of LEA names before pasting them into the table below.
B5: LEA identifier (state) | C5: LEA name

Sheet Special Ed Teachers (FS070)
A1: ="IDEA LEA Personnel Data for School Year "&'Special Ed Teachers (FS070)'!E11 -> IDEA LEA Personnel Data for School Year | Q1: End of worksheet | Z1: End of worksheet
O3: =SUM(R12:R40) -> 0
A9: FS070 — Special Education Teachers (FTE)
A10: File record number | B10: State code | C10: State agency number | D10: LEA identifier (state) | E10: Filler | F10: Table name | G10: Filler | H10: Qualification status (teachers) | I10: Filler | J10: Age group | K10: Total indicator | L10: Explanation | M10: Teacher FTE

Sheet Related Services Pers. (FS099)
A1: ="IDEA LEA Personnel Data for School Year "&'Special Ed Teachers (FS070)'!E11 -> IDEA LEA Personnel Data for School Year | P1: End of worksheet | Y1: End of worksheet
N3: =SUM(Q12:Q70) -> 0
A9: FS099 — Special Education Related Services Personnel
A10: File record number | B10: State code | C10: State agency number | D10: LEA identifier (state) | E10: Filler | F10: Table name | G10: Staff category (special education related service) | H10: Certification status | I10: Filler | J10: Total indicator | K10: Explanation | L10: Staff FTE

Sheet Sp Ed Paraprofessionals (FS112)
A1: ="IDEA LEA Personnel Data for School Year "&'Special Ed Teachers (FS070)'!E11 -> IDEA LEA Personnel Data for School Year | O1: =IF(LEN(AF13)=0,"",IF(ISNA(MATCH(AF13,CurrentListing,0)),AG13,"")) | T1: End of worksheet | Z1: End of worksheet
O3: =SUM(R12:R40) -> 0
A9: FS112 — Special Education Paraprofessionals
A10: File record number | B10: State code | C10: State agency number | D10: LEA identifier (state) | E10: Filler | F10: Table name | G10: Filler | H10: Age group | I10: Qualification status | J10: Filler | K10: Total indicator | L10: Explanation | M10: Staff FTE
AE13: File record number | AF13: State code | AG13: State agency number | AH13: LEA identifier (state) | AI13: Filler | AJ13: Table name | AK13: Filler | AL13: Qualification status (teachers) | AM13: Filler | AN13: Age group | AO13: Total indicator | AP13: Explanation | AQ13: Teacher FTE | AS13: File record number | AT13: State code | AU13: State agency number | AV13: LEA identifier (state) | AW13: Filler | AX13: Table name | AY13: Staff category (special education related service) | AZ13: Certification status | BA13: Filler | BB13: Total indicator | BC13: Explanation | BD13: Staff FTE | BF13: File record number | BG13: State code | BH13: State agency number | BI13: LEA identifier (state) | BJ13: Filler | BK13: Table name | BL13: Filler | BM13: Age group | BN13: Qualification status | BO13: Filler | BP13: Total indicator | BQ13: Explanation | BR13: Staff FTE
AE14: 6 | AF14: 98 | AG14: 01 | AH14: 35 | AJ14: TEACHSPED | AL14: SPEDTCHFULCRT | AN14: 3TO5 | AO14: N | AQ14: 2 | AS14: 147 | AT14: 98 | AU14: 01 | AV14: 35 | AX14: SPEDUPERSNL | AY14: OCCTHERAP | AZ14: FC | BB14: N | BD14: 0.1 | BF14: 32 | BG14: 98 | BH14: 01 | BI14: 35 | BK14: SPEDPARAPROF | BM14: 3TO5 | BN14: Q | BP14: N | BR14: 4
AE15: 123 | AF15: 98 | AG15: 01 | AH15: 35 | AJ15: TEACHSPED | AL15: SPEDTCHFULCRT | AN15: 6TO21 | AO15: N | AQ15: 15 | AS15: 303 | AT15: 98 | AU15: 01 | AV15: 35 | AX15: SPEDUPERSNL | AY15: PHYSTHERAP | AZ15: FC | BB15: N | BD15: 0.1 | BF15: 148 | BG15: 98 | BH15: 01 | BI15: 35 | BK15: SPEDPARAPROF | BM15: 6TO21 | BN15: Q | BP15: N | BR15: 32.75
AE16: 273 | AF16: 98 | AG16: 01 | AH16: 35 | AJ16: TEACHSPED | AL16: SPEDTCHNFULCRT | AN16: 6TO21 | AO16: N | AQ16: 4 | AS16: 417 | AT16: 98 | AU16: 01 | AV16: 35 | AX16: SPEDUPERSNL | AY16: PSYCH | AZ16: FC | BB16: N | BD16: 2 | BF16: 291 | BG16: 98 | BH16: 01 | BI16: 35 | BK16: SPEDPARAPROF | BM16: 3TO5 | BP16: Y | BR16: 4
AE17: 325 | AF17: 98 | AG17: 01 | AH17: 35 | AJ17: TEACHSPED | AL17: SPEDTCHFULCRT | AO17: Y | AQ17: 17 | AS17: 565 | AT17: 98 | AU17: 01 | AV17: 35 | AX17: SPEDUPERSNL | AY17: SPEECHPATH | AZ17: FC | BB17: N | BD17: 2 | BF17: 292 | BG17: 98 | BH17: 01 | BI17: 35 | BK17: SPEDPARAPROF | BM17: 6TO21 | BP17: Y | BR17: 32.75
AE18: 326 | AF18: 98 | AG18: 01 | AH18: 35 | AJ18: TEACHSPED | AL18: SPEDTCHNFULCRT | AO18: Y | AQ18: 4 | AS18: 772 | AT18: 98 | AU18: 01 | AV18: 35 | AX18: SPEDUPERSNL | AY18: OCCTHERAP | BB18: Y | BD18: 0.1 | BF18: 543 | BG18: 98 | BH18: 01 | BI18: 35 | BK18: SPEDPARAPROF | BN18: Q | BP18: Y | BR18: 36.75
AE19: 514 | AF19: 98 | AG19: 01 | AH19: 35 | AJ19: TEACHSPED | AN19: 3TO5 | AO19: Y | AQ19: 2 | AS19: 773 | AT19: 98 | AU19: 01 | AV19: 35 | AX19: SPEDUPERSNL | AY19: PHYSTHERAP | BB19: Y | BD19: 0.1 | BF19: 702 | BG19: 98 | BH19: 01 | BI19: 35 | BK19: SPEDPARAPROF | BP19: Y | BR19: 36.75
AE20: 515 | AF20: 98 | AG20: 01 | AH20: 35 | AJ20: TEACHSPED | AN20: 6TO21 | AO20: Y | AQ20: 19 | AS20: 774 | AT20: 98 | AU20: 01 | AV20: 35 | AX20: SPEDUPERSNL | AY20: PSYCH | BB20: Y | BD20: 2
AE21: 767 | AF21: 98 | AG21: 01 | AH21: 35 | AJ21: TEACHSPED | AO21: Y | AQ21: 21 | AS21: 775 | AT21: 98 | AU21: 01 | AV21: 35 | AX21: SPEDUPERSNL | AY21: SPEECHPATH | BB21: Y | BD21: 2

Sheet Select LEA
A1: ="IDEA LEA Personnel Data for School Year "&'Special Ed Teachers (FS070)'!E11&CHAR(10)&" "&C6 -> IDEA LEA Personnel Data for School Year | AD1: End of worksheet | BX1: End of worksheet
T2: LEA identifier (state)
I3: Data quality checks | T3: ='Select LEA'!$C$8 ->  | V3: =SUM(V14:V39) -> 23
I4: Type | K4: FS070 | L4: FS099 | M4: FS112
K5: Total | L5: Total | M5: Total
A6: Select LEA: | I6: Data elements not included for this LEA | K6: =COUNTIF(O14:O22,"?*") -> 9 | L6: =COUNTIF(O26:O58,"?*") -> 33 | M6: =COUNTIF(O62:O70,"?*") -> 9
I7: Duplicate row elements | K7: =COUNTIF(P14:P23,"?*") -> 0 | L7: =COUNTIF(P26:P58,"?*") -> 0 | M7: =COUNTIF(P62:P70,"?*") -> 0
A8: LEA identifier: | C8: =IFERROR(IF(C6="", "", INDEX(LEA_Identifier_State,MATCH($C$6,LEA_Name,0))),"") ->  | I8: Invalid data elements | K8: =COUNTIF(Q14:Q23,"?*") -> 0 | L8: =COUNTIF(Q26:Q58,"?*") -> 0 | M8: =COUNTIF(Q62:Q70,"?*") -> 0
A12: =AE12 -> FS070 — Special Education Teachers (FTE) | O12: Data quality checks | AE12: FS070 — Special Education Teachers (FTE) | AS12: FS099 — Special Education Related Services Personnel | BF12: FS112 — Special Education Paraprofessionals
A13: =AE13 -> File record number | B13: =AF13 -> State code | C13: State agency number | D13: LEA identifier (state) | E13: Filler | F13: Table name | G13: Filler | H13: Qualification status (teachers) | I13: Filler | J13: Age group | K13: Total indicator | L13: Explanation | M13: Teacher FTE | O13: Data elements not included for this LEA | P13: Duplicate row elements | Q13: Invalid data elements | S13: Missing Data Element | T13: Current Listing | U13: Master Listing | V13: Is Blank | X13: =COUNTIF(O15:O25,"*" & $Y$12 & "*") -> 11 | Y13: MISSING | Z13: Master Listing (output) | AA13: Current Listing (output) | AC13: Is Missing Data Element | AE13: File record number | AF13: State code | AG13: State agency number | AH13: LEA identifier (state) | AI13: Filler | AJ13: Table name | AK13: Filler | AL13: Qualification status (teachers) | AM13: Filler | AN13: Age group | AO13: Total indicator | AP13: Explanation | AQ13: Teacher FTE | AS13: File record number | AT13: State code | AU13: State agency number | AV13: LEA identifier (state) | AW13: Filler | AX13: Table name | AY13: Staff category (special education related service) | AZ13: Certification status | BA13: Filler | BB13: Total indicator | BC13: Explanation | BD13: Staff FTE | BF13: File record number | BG13: State code | BH13: State agency number | BI13: LEA identifier (state) | BJ13: Filler | BK13: Table name | BL13: Filler | BM13: Age group | BN13: Qualification status | BO13: Filler | BP13: Total indicator | BQ13: Explanation | BR13: Staff FTE | BT13: Selected LEA=1 | BU13: LEA_Name | BV13: Count rows | BW13: Vallidation Lookup List
A14: =IF(AE14="","",AE14) ->  | B14: =IF(AF14="","",AF14) ->  | O14: =IFERROR(INDEX(MissingData_FS070, SMALL(IF(ISBLANK(MissingData_FS070)+ISERROR(MissingData_FS070)+LEN(MissingData_FS070)=0, "", ROW(MissingData_FS070)-MIN(ROW(MissingData_FS070))+1), ROW(1:1))),"") -> SPEDTCHFULCRT_3TO5_N | P14: =IF(COUNTIF(CurrentListing,T14)>1,AA14,"") ->  | Q14: =IF(LEN(T14)=0,"",IF(ISNA(MATCH(T14,MasterListing_FS070,0)),AA14,"")) ->  | S14: =IF(LEN(Z14)=0,"",IF(ISNA(MATCH(U14,CurrentListing,0)),Z14,"")) -> SPEDTCHFULCRT_3TO5_N | T14: =H14&J14&K14 ->  | U14: SPEDTCHFULCRT3TO5N | V14: =IF(LEN(S14)>0,1,0) -> 1 | Z14: SPEDTCHFULCRT_3TO5_N | AA14: =IF(LEN(H14&"_"&J14&"_"&K14)<3,"",H14&"_"&J14&"_"&K14) ->  | AC14: =IF(LEN(S14)>0,1,0) -> 1 | BT14: =IF(ISNUMBER(SEARCH($C$6,BU14)),MAX($BT$13:BT13)+1,0) -> 1 | BU14: =LEA_Name -> 0 | BV14: =ROWS($BV$14:BV14) -> 1 | BW14: =IFERROR(VLOOKUP(ROWS($BW$14:BW14),$BT$14:$BU$5000,2,0),"") -> 0
A15: =IF(AE15="","",AE15) ->  | O15: =IFERROR(INDEX(MissingData_FS070, SMALL(IF(ISBLANK(MissingData_FS070)+ISERROR(MissingData_FS070)+LEN(MissingData_FS070)=0, "", ROW(MissingData_FS070)-MIN(ROW(MissingData_FS070))+1), ROW(2:2))),"") -> SPEDTCHFULCRT_6TO21_N | S15: SPEDTCHFULCRT_6TO21_N | U15: SPEDTCHFULCRT6TO21N | V15: =IF(LEN(S15)>0,1,0) -> 1 | Z15: SPEDTCHFULCRT_6TO21_N | AC15: =IF(LEN(S15)>0,1,0) -> 1 | BT15: =IF(ISNUMBER(SEARCH($C$6,BU15)),MAX($BT$13:BT14)+1,0) -> 2 | BU15: 0 | BV15: =ROWS($BV$14:BV15) -> 2 | BW15: =IFERROR(VLOOKUP(ROWS($BW$14:BW15),$BT$14:$BU$5000,2,0),"") -> 0
M16: =IF(AQ16="","",AQ16) ->  | O16: =IFERROR(INDEX(MissingData_FS070, SMALL(IF(ISBLANK(MissingData_FS070)+ISERROR(MissingData_FS070)+LEN(MissingData_FS070)=0, "", ROW(MissingData_FS070)-MIN(ROW(MissingData_FS070))+1), ROW(3:3))),"") -> SPEDTCHNFULCRT_3TO5_N | S16: SPEDTCHNFULCRT_3TO5_N | U16: SPEDTCHNFULCRT3TO5N | V16: 1 | Z16: SPEDTCHNFULCRT_3TO5_N | AC16: 1 | BT16: =IF(ISNUMBER(SEARCH($C$6,BU16)),MAX($BT$13:BT15)+1,0) -> 3 | BU16: 0 | BV16: =ROWS($BV$14:BV16) -> 3 | BW16: =IFERROR(VLOOKUP(ROWS($BW$14:BW16),$BT$14:$BU$5000,2,0),"") -> 0
O17: =IFERROR(INDEX(MissingData_FS070, SMALL(IF(ISBLANK(MissingData_FS070)+ISERROR(MissingData_FS070)+LEN(MissingData_FS070)=0, "", ROW(MissingData_FS070)-MIN(ROW(MissingData_FS070))+1), ROW(4:4))),"") -> SPEDTCHNFULCRT_6TO21_N | S17: SPEDTCHNFULCRT_6TO21_N | U17: SPEDTCHNFULCRT6TO21N | V17: 1 | Z17: SPEDTCHNFULCRT_6TO21_N | AC17: 1 | BT17: =IF(ISNUMBER(SEARCH($C$6,BU17)),MAX($BT$13:BT16)+1,0) -> 4 | BU17: 0 | BV17: =ROWS($BV$14:BV17) -> 4 | BW17: =IFERROR(VLOOKUP(ROWS($BW$14:BW17),$BT$14:$BU$5000,2,0),"") -> 0
O18: =IFERROR(INDEX(MissingData_FS070, SMALL(IF(ISBLANK(MissingData_FS070)+ISERROR(MissingData_FS070)+LEN(MissingData_FS070)=0, "", ROW(MissingData_FS070)-MIN(ROW(MissingData_FS070))+1), ROW(5:5))),"") -> _3TO5_Y | S18: _3TO5_Y | U18: 3TO5Y | V18: 1 | Z18: _3TO5_Y | AC18: 1 | BT18: =IF(ISNUMBER(SEARCH($C$6,BU18)),MAX($BT$13:BT17)+1,0) -> 5 | BU18: 0 | BV18: =ROWS($BV$14:BV18) -> 5 | BW18: =IFERROR(VLOOKUP(ROWS($BW$14:BW18),$BT$14:$BU$5000,2,0),"") -> 0
O19: =IFERROR(INDEX(MissingData_FS070, SMALL(IF(ISBLANK(MissingData_FS070)+ISERROR(MissingData_FS070)+LEN(MissingData_FS070)=0, "", ROW(MissingData_FS070)-MIN(ROW(MissingData_FS070))+1), ROW(6:6))),"") -> _6TO21_Y | S19: _6TO21_Y | U19: 6TO21Y | V19: 1 | Z19: _6TO21_Y | AC19: 1 | BT19: =IF(ISNUMBER(SEARCH($C$6,BU19)),MAX($BT$13:BT18)+1,0) -> 6 | BU19: 0 | BV19: =ROWS($BV$14:BV19) -> 6 | BW19: =IFERROR(VLOOKUP(ROWS($BW$14:BW19),$BT$14:$BU$5000,2,0),"") -> 0
O20: =IFERROR(INDEX(MissingData_FS070, SMALL(IF(ISBLANK(MissingData_FS070)+ISERROR(MissingData_FS070)+LEN(MissingData_FS070)=0, "", ROW(MissingData_FS070)-MIN(ROW(MissingData_FS070))+1), ROW(7:7))),"") -> SPEDTCHNFULCRT__Y | S20: SPEDTCHNFULCRT__Y | U20: SPEDTCHFULCRTY | V20: 1 | Z20: SPEDTCHNFULCRT__Y | AC20: 1 | BT20: =IF(ISNUMBER(SEARCH($C$6,BU20)),MAX($BT$13:BT19)+1,0) -> 7 | BU20: 0 | BV20: =ROWS($BV$14:BV20) -> 7 | BW20: =IFERROR(VLOOKUP(ROWS($BW$14:BW20),$BT$14:$BU$5000,2,0),"") -> 0
O21: =IFERROR(INDEX(MissingData_FS070, SMALL(IF(ISBLANK(MissingData_FS070)+ISERROR(MissingData_FS070)+LEN(MissingData_FS070)=0, "", ROW(MissingData_FS070)-MIN(ROW(MissingData_FS070))+1), ROW(8:8))),"") -> SPEDTCHFULCRT__Y | S21: SPEDTCHFULCRT__Y | U21: SPEDTCHNFULCRTY | V21: 1 | Z21: SPEDTCHFULCRT__Y | AA21: =IF(LEN(H22&"_"&J22&"_"&K22)<3,"",H22&"_"&J22&"_"&K22) ->  | AC21: 1 | BT21: =IF(ISNUMBER(SEARCH($C$6,BU21)),MAX($BT$13:BT20)+1,0) -> 8 | BU21: 0 | BV21: =ROWS($BV$14:BV21) -> 8 | BW21: =IFERROR(VLOOKUP(ROWS($BW$14:BW21),$BT$14:$BU$5000,2,0),"") -> 0
A22: =IF(AE22="","",AE22) ->  | O22: =IFERROR(INDEX(MissingData_FS070, SMALL(IF(ISBLANK(MissingData_FS070)+ISERROR(MissingData_FS070)+LEN(MissingData_FS070)=0, "", ROW(MissingData_FS070)-MIN(ROW(MissingData_FS070))+1), ROW(9:9))),"") -> __Y | P22: =IF(COUNTIF(CurrentListing,T21)>1,AA21,"") ->  | Q22: =IF(LEN(T21)=0,"",IF(ISNA(MATCH(T21,MasterListing_FS070,0)),AA21,"")) ->  | S22: __Y | U22: Y | V22: 1 | Z22: __Y | AA22: =IF(LEN(H23&"_"&J23&"_"&K23)<3,"",H23&"_"&J23&"_"&K23) ->  | AC22: 1 | BT22: =IF(ISNUMBER(SEARCH($C$6,BU22)),MAX($BT$13:BT21)+1,0) -> 9 | BU22: 0 | BV22: =ROWS($BV$14:BV22) -> 9 | BW22: =IFERROR(VLOOKUP(ROWS($BW$14:BW22),$BT$14:$BU$5000,2,0),"") -> 0
O23: =IFERROR(INDEX($S$14:$S$22, SMALL(IF(ISBLANK($S$14:$S$22)+ISERROR($S$14:$S$22)+LEN($S$14:$S$22)=0, "", ROW($S$14:$S$22)-MIN(ROW($S$14:$S$22))+1), ROW(22:22))),"") ->  | P23: =IF(COUNTIF(CurrentListing,T22)>1,AA22,"") ->  | Q23: =IF(LEN(T22)=0,"",IF(ISNA(MATCH(T22,MasterListing_FS070,0)),AA22,"")) ->  | BT23: =IF(ISNUMBER(SEARCH($C$6,BU23)),MAX($BT$13:BT22)+1,0) -> 10 | BU23: 0 | BV23: =ROWS($BV$14:BV23) -> 10 | BW23: =IFERROR(VLOOKUP(ROWS($BW$14:BW23),$BT$14:$BU$5000,2,0),"") -> 0
A24: =AS12 -> FS099 — Special Education Related Services Personnel | O24: Data quality checks | BT24: =IF(ISNUMBER(SEARCH($C$6,BU24)),MAX($BT$13:BT23)+1,0) -> 11 | BU24: 0 | BV24: =ROWS($BV$14:BV24) -> 11 | BW24: =IFERROR(VLOOKUP(ROWS($BW$14:BW24),$BT$14:$BU$5000,2,0),"") -> 0
A25: =AS13 -> File record number | B25: =AT13 -> State code | C25: State agency number | D25: LEA identifier (state) | E25: Filler | F25: Table name | G25: Staff category (special education related service) | H25: Certification status | I25: Filler | J25: Total indicator | K25: Explanation | L25: Staff FTE | O25: Data elements not included for this LEA | P25: Duplicate row elements | Q25: Invalid data elements | S25: Missing Data Element | T25: Current Listing | U25: Master Listing | V25: Is Blank | X25: =COUNTIF(O27:O40,"*" & $Y$10 & "*") -> 14 | Y25: MISSING | Z25: Master Listing (output) | AA25: Current Listing (output) | AC25: Is Missing Data Element | BT25: =IF(ISNUMBER(SEARCH($C$6,BU25)),MAX($BT$13:BT24)+1,0) -> 12 | BU25: 0 | BV25: =ROWS($BV$14:BV25) -> 12 | BW25: =IFERROR(VLOOKUP(ROWS($BW$14:BW25),$BT$14:$BU$5000,2,0),"") -> 0
A26: =IF(AS14="","",AS14) ->  | B26: =IF(AT14="","",AT14) ->  | C26: =IF(AU14="","",AU14) ->  | D26: =IF(AV14="","",AV14) ->  | E26: =IF(AW14="","",AW14) ->  | F26: =IF(AX14="","",AX14) ->  | G26: =IF(AY14="","",AY14) ->  | H26: =IF(AZ14="","",AZ14) ->  | I26: =IF(BA14="","",BA14) ->  | J26: =IF(BB14="","",BB14) ->  | K26: =IF(BC14="","",BC14) ->  | L26: =IF(BD14="","",BD14) ->  | O26: =IFERROR(INDEX(MissingData_FS099, SMALL(IF(ISBLANK(MissingData_FS099)+ISERROR(MissingData_FS099)+LEN(MissingData_FS099)=0, "", ROW(MissingData_FS099)-MIN(ROW(MissingData_FS099))+1), ROW(1:1))),"") -> AUDIO_FC_N | P26: =IF(COUNTIF(CurrentListing_C099,T26)>1,AA26,"") ->  | Q26: =IF(LEN(T26)=0,"",IF(ISNA(MATCH(T26,MasterListing_FS099,0)),AA26,"")) ->  | S26: =IF(LEN(Z26)=0,"",IF(ISNA(MATCH(U26,CurrentListing_C099,0)),Z26,"")) -> AUDIO_FC_N | T26: =G26&H26&J26 ->  | U26: AUDIOFCN | V26: =IF(LEN(S26)>0,1,0) -> 1 | Z26: AUDIO_FC_N | AA26: =IF(LEN(G26&"_"&H26&"_"&J26)<3,"",G26&"_"&H26&"_"&J26) ->  | AC26: =IF(LEN(S26)>0,1,0) -> 1 | BT26: =IF(ISNUMBER(SEARCH($C$6,BU26)),MAX($BT$13:BT25)+1,0) -> 13 | BU26: 0 | BV26: =ROWS($BV$14:BV26) -> 13 | BW26: =IFERROR(VLOOKUP(ROWS($BW$14:BW26),$BT$14:$BU$5000,2,0),"") -> 0
A27: =IF(AS15="","",AS15) ->  | O27: =IFERROR(INDEX(MissingData_FS099, SMALL(IF(ISBLANK(MissingData_FS099)+ISERROR(MissingData_FS099)+LEN(MissingData_FS099)=0, "", ROW(MissingData_FS099)-MIN(ROW(MissingData_FS099))+1), ROW(2:2))),"") -> COUNSELOR_FC_N | S27: COUNSELOR_FC_N | U27: COUNSELORFCN | V27: 1 | Z27: COUNSELOR_FC_N | AC27: 1 | BT27: =IF(ISNUMBER(SEARCH($C$6,BU27)),MAX($BT$13:BT26)+1,0) -> 14 | BU27: 0 | BV27: =ROWS($BV$14:BV27) -> 14 | BW27: =IFERROR(VLOOKUP(ROWS($BW$14:BW27),$BT$14:$BU$5000,2,0),"") -> 0
O28: =IFERROR(INDEX(MissingData_FS099, SMALL(IF(ISBLANK(MissingData_FS099)+ISERROR(MissingData_FS099)+LEN(MissingData_FS099)=0, "", ROW(MissingData_FS099)-MIN(ROW(MissingData_FS099))+1), ROW(3:3))),"") -> INTERPRET_FC_N | S28: INTERPRET_FC_N | U28: INTERPRETFCN | V28: 1 | Z28: INTERPRET_FC_N | AC28: 1 | BT28: =IF(ISNUMBER(SEARCH($C$6,BU28)),MAX($BT$13:BT27)+1,0) -> 15 | BU28: 0 | BV28: =ROWS($BV$14:BV28) -> 15 | BW28: =IFERROR(VLOOKUP(ROWS($BW$14:BW28),$BT$14:$BU$5000,2,0),"") -> 0
O29: =IFERROR(INDEX(MissingData_FS099, SMALL(IF(ISBLANK(MissingData_FS099)+ISERROR(MissingData_FS099)+LEN(MissingData_FS099)=0, "", ROW(MissingData_FS099)-MIN(ROW(MissingData_FS099))+1), ROW(4:4))),"") -> MEDNURSE_FC_N | S29: MEDNURSE_FC_N | U29: MEDNURSEFCN | V29: 1 | Z29: MEDNURSE_FC_N | AC29: 1 | BT29: =IF(ISNUMBER(SEARCH($C$6,BU29)),MAX($BT$13:BT28)+1,0) -> 16 | BU29: 0 | BV29: =ROWS($BV$14:BV29) -> 16 | BW29: =IFERROR(VLOOKUP(ROWS($BW$14:BW29),$BT$14:$BU$5000,2,0),"") -> 0
O30: =IFERROR(INDEX(MissingData_FS099, SMALL(IF(ISBLANK(MissingData_FS099)+ISERROR(MissingData_FS099)+LEN(MissingData_FS099)=0, "", ROW(MissingData_FS099)-MIN(ROW(MissingData_FS099))+1), ROW(5:5))),"") -> OCCTHERAP_FC_N | S30: OCCTHERAP_FC_N | U30: OCCTHERAPFCN | V30: 1 | Z30: OCCTHERAP_FC_N | AC30: 1 | BT30: =IF(ISNUMBER(SEARCH($C$6,BU30)),MAX($BT$13:BT29)+1,0) -> 17 | BU30: 0 | BV30: =ROWS($BV$14:BV30) -> 17 | BW30: =IFERROR(VLOOKUP(ROWS($BW$14:BW30),$BT$14:$BU$5000,2,0),"") -> 0
O31: =IFERROR(INDEX(MissingData_FS099, SMALL(IF(ISBLANK(MissingData_FS099)+ISERROR(MissingData_FS099)+LEN(MissingData_FS099)=0, "", ROW(MissingData_FS099)-MIN(ROW(MissingData_FS099))+1), ROW(6:6))),"") -> ORIENTMOBIL_FC_N | S31: ORIENTMOBIL_FC_N | U31: ORIENTMOBILFCN | V31: 1 | Z31: ORIENTMOBIL_FC_N | AC31: 1 | BT31: =IF(ISNUMBER(SEARCH($C$6,BU31)),MAX($BT$13:BT30)+1,0) -> 18 | BU31: 0 | BV31: =ROWS($BV$14:BV31) -> 18 | BW31: =IFERROR(VLOOKUP(ROWS($BW$14:BW31),$BT$14:$BU$5000,2,0),"") -> 0
O32: =IFERROR(INDEX(MissingData_FS099, SMALL(IF(ISBLANK(MissingData_FS099)+ISERROR(MissingData_FS099)+LEN(MissingData_FS099)=0, "", ROW(MissingData_FS099)-MIN(ROW(MissingData_FS099))+1), ROW(7:7))),"") -> PEANDREC_FC_N | S32: PEANDREC_FC_N | U32: PEANDRECFCN | V32: 1 | Z32: PEANDREC_FC_N | AC32: 1 | BT32: =IF(ISNUMBER(SEARCH($C$6,BU32)),MAX($BT$13:BT31)+1,0) -> 19 | BU32: 0 | BV32: =ROWS($BV$14:BV32) -> 19 | BW32: =IFERROR(VLOOKUP(ROWS($BW$14:BW32),$BT$14:$BU$5000,2,0),"") -> 0
O33: =IFERROR(INDEX(MissingData_FS099, SMALL(IF(ISBLANK(MissingData_FS099)+ISERROR(MissingData_FS099)+LEN(MissingData_FS099)=0, "", ROW(MissingData_FS099)-MIN(ROW(MissingData_FS099))+1), ROW(8:8))),"") -> PHYSTHERAP_FC_N | S33: PHYSTHERAP_FC_N | U33: PHYSTHERAPFCN | V33: 1 | Z33: PHYSTHERAP_FC_N | AC33: 1 | BT33: =IF(ISNUMBER(SEARCH($C$6,BU33)),MAX($BT$13:BT32)+1,0) -> 20 | BU33: 0 | BV33: =ROWS($BV$14:BV33) -> 20 | BW33: =IFERROR(VLOOKUP(ROWS($BW$14:BW33),$BT$14:$BU$5000,2,0),"") -> 0
O34: =IFERROR(INDEX(MissingData_FS099, SMALL(IF(ISBLANK(MissingData_FS099)+ISERROR(MissingData_FS099)+LEN(MissingData_FS099)=0, "", ROW(MissingData_FS099)-MIN(ROW(MissingData_FS099))+1), ROW(9:9))),"") -> PSYCH_FC_N | S34: PSYCH_FC_N | U34: PSYCHFCN | V34: 1 | Z34: PSYCH_FC_N | AC34: 1 | BT34: =IF(ISNUMBER(SEARCH($C$6,BU34)),MAX($BT$13:BT33)+1,0) -> 21 | BU34: 0 | BV34: =ROWS($BV$14:BV34) -> 21 | BW34: =IFERROR(VLOOKUP(ROWS($BW$14:BW34),$BT$14:$BU$5000,2,0),"") -> 0
O35: =IFERROR(INDEX(MissingData_FS099, SMALL(IF(ISBLANK(MissingData_FS099)+ISERROR(MissingData_FS099)+LEN(MissingData_FS099)=0, "", ROW(MissingData_FS099)-MIN(ROW(MissingData_FS099))+1), ROW(10:10))),"") -> SOCIALWORK_FC_N | S35: SOCIALWORK_FC_N | U35: SOCIALWORKFCN | V35: 1 | Z35: SOCIALWORK_FC_N | AC35: 1 | BT35: =IF(ISNUMBER(SEARCH($C$6,BU35)),MAX($BT$13:BT34)+1,0) -> 22 | BU35: 0 | BV35: =ROWS($BV$14:BV35) -> 22 | BW35: =IFERROR(VLOOKUP(ROWS($BW$14:BW35),$BT$14:$BU$5000,2,0),"") -> 0
O36: =IFERROR(INDEX(MissingData_FS099, SMALL(IF(ISBLANK(MissingData_FS099)+ISERROR(MissingData_FS099)+LEN(MissingData_FS099)=0, "", ROW(MissingData_FS099)-MIN(ROW(MissingData_FS099))+1), ROW(11:11))),"") -> SPEECHPATH_FC_N | S36: SPEECHPATH_FC_N | U36: SPEECHPATHFCN | V36: 1 | Z36: SPEECHPATH_FC_N | AC36: 1 | BT36: =IF(ISNUMBER(SEARCH($C$6,BU36)),MAX($BT$13:BT35)+1,0) -> 23 | BU36: 0 | BV36: =ROWS($BV$14:BV36) -> 23 | BW36: =IFERROR(VLOOKUP(ROWS($BW$14:BW36),$BT$14:$BU$5000,2,0),"") -> 0
O37: =IFERROR(INDEX(MissingData_FS099, SMALL(IF(ISBLANK(MissingData_FS099)+ISERROR(MissingData_FS099)+LEN(MissingData_FS099)=0, "", ROW(MissingData_FS099)-MIN(ROW(MissingData_FS099))+1), ROW(12:12))),"") -> COUNSELOR_NFC_N | S37: COUNSELOR_NFC_N | U37: COUNSELORNFCN | V37: 1 | Z37: COUNSELOR_NFC_N | AC37: 1 | BT37: =IF(ISNUMBER(SEARCH($C$6,BU37)),MAX($BT$13:BT36)+1,0) -> 24 | BU37: 0 | BV37: =ROWS($BV$14:BV37) -> 24 | BW37: =IFERROR(VLOOKUP(ROWS($BW$14:BW37),$BT$14:$BU$5000,2,0),"") -> 0
O38: =IFERROR(INDEX(MissingData_FS099, SMALL(IF(ISBLANK(MissingData_FS099)+ISERROR(MissingData_FS099)+LEN(MissingData_FS099)=0, "", ROW(MissingData_FS099)-MIN(ROW(MissingData_FS099))+1), ROW(13:13))),"") -> INTERPRET_NFC_N | S38: INTERPRET_NFC_N | U38: INTERPRETNFCN | V38: 1 | Z38: INTERPRET_NFC_N | AC38: 1 | BT38: =IF(ISNUMBER(SEARCH($C$6,BU38)),MAX($BT$13:BT37)+1,0) -> 25 | BU38: 0 | BV38: =ROWS($BV$14:BV38) -> 25 | BW38: =IFERROR(VLOOKUP(ROWS($BW$14:BW38),$BT$14:$BU$5000,2,0),"") -> 0
O39: =IFERROR(INDEX(MissingData_FS099, SMALL(IF(ISBLANK(MissingData_FS099)+ISERROR(MissingData_FS099)+LEN(MissingData_FS099)=0, "", ROW(MissingData_FS099)-MIN(ROW(MissingData_FS099))+1), ROW(14:14))),"") -> OCCTHERAP_NFC_N | S39: OCCTHERAP_NFC_N | U39: OCCTHERAPNFCN | V39: 1 | Z39: OCCTHERAP_NFC_N | AC39: 1 | BT39: =IF(ISNUMBER(SEARCH($C$6,BU39)),MAX($BT$13:BT38)+1,0) -> 26 | BU39: 0 | BV39: =ROWS($BV$14:BV39) -> 26 | BW39: =IFERROR(VLOOKUP(ROWS($BW$14:BW39),$BT$14:$BU$5000,2,0),"") -> 0
O40: =IFERROR(INDEX(MissingData_FS099, SMALL(IF(ISBLANK(MissingData_FS099)+ISERROR(MissingData_FS099)+LEN(MissingData_FS099)=0, "", ROW(MissingData_FS099)-MIN(ROW(MissingData_FS099))+1), ROW(15:15))),"") -> ORIENTMOBIL_NFC_N | S40: ORIENTMOBIL_NFC_N | U40: ORIENTMOBILNFCN | V40: 1 | Z40: ORIENTMOBIL_NFC_N | AC40: 1 | BT40: =IF(ISNUMBER(SEARCH($C$6,BU40)),MAX($BT$13:BT39)+1,0) -> 27 | BU40: 0 | BV40: =ROWS($BV$14:BV40) -> 27 | BW40: =IFERROR(VLOOKUP(ROWS($BW$14:BW40),$BT$14:$BU$5000,2,0),"") -> 0
O41: =IFERROR(INDEX(MissingData_FS099, SMALL(IF(ISBLANK(MissingData_FS099)+ISERROR(MissingData_FS099)+LEN(MissingData_FS099)=0, "", ROW(MissingData_FS099)-MIN(ROW(MissingData_FS099))+1), ROW(16:16))),"") -> PHYSTHERAP_NFC_N | S41: PHYSTHERAP_NFC_N | U41: PHYSTHERAPNFCN | V41: 1 | Z41: PHYSTHERAP_NFC_N | AC41: 1 | BT41: =IF(ISNUMBER(SEARCH($C$6,BU41)),MAX($BT$13:BT40)+1,0) -> 28 | BU41: 0 | BV41: =ROWS($BV$14:BV41) -> 28 | BW41: =IFERROR(VLOOKUP(ROWS($BW$14:BW41),$BT$14:$BU$5000,2,0),"") -> 0
O42: =IFERROR(INDEX(MissingData_FS099, SMALL(IF(ISBLANK(MissingData_FS099)+ISERROR(MissingData_FS099)+LEN(MissingData_FS099)=0, "", ROW(MissingData_FS099)-MIN(ROW(MissingData_FS099))+1), ROW(17:17))),"") -> PSYCH_NFC_N | S42: PSYCH_NFC_N | U42: PSYCHNFCN | V42: 1 | Z42: PSYCH_NFC_N | AC42: 1 | BT42: =IF(ISNUMBER(SEARCH($C$6,BU42)),MAX($BT$13:BT41)+1,0) -> 29 | BU42: 0 | BV42: =ROWS($BV$14:BV42) -> 29 | BW42: =IFERROR(VLOOKUP(ROWS($BW$14:BW42),$BT$14:$BU$5000,2,0),"") -> 0
O43: =IFERROR(INDEX(MissingData_FS099, SMALL(IF(ISBLANK(MissingData_FS099)+ISERROR(MissingData_FS099)+LEN(MissingData_FS099)=0, "", ROW(MissingData_FS099)-MIN(ROW(MissingData_FS099))+1), ROW(18:18))),"") -> SOCIALWORK_NFC_N | S43: SOCIALWORK_NFC_N | U43: SOCIALWORKNFCN | V43: 1 | Z43: SOCIALWORK_NFC_N | AC43: 1 | BT43: =IF(ISNUMBER(SEARCH($C$6,BU43)),MAX($BT$13:BT42)+1,0) -> 30 | BU43: 0 | BV43: =ROWS($BV$14:BV43) -> 30 | BW43: =IFERROR(VLOOKUP(ROWS($BW$14:BW43),$BT$14:$BU$5000,2,0),"") -> 0
O44: =IFERROR(INDEX(MissingData_FS099, SMALL(IF(ISBLANK(MissingData_FS099)+ISERROR(MissingData_FS099)+LEN(MissingData_FS099)=0, "", ROW(MissingData_FS099)-MIN(ROW(MissingData_FS099))+1), ROW(19:19))),"") -> SPEECHPATH_NFC_N | S44: SPEECHPATH_NFC_N | U44: SPEECHPATHNFCN | V44: 1 | Z44: SPEECHPATH_NFC_N | AC44: 1 | BT44: =IF(ISNUMBER(SEARCH($C$6,BU44)),MAX($BT$13:BT43)+1,0) -> 31 | BU44: 0 | BV44: =ROWS($BV$14:BV44) -> 31 | BW44: =IFERROR(VLOOKUP(ROWS($BW$14:BW44),$BT$14:$BU$5000,2,0),"") -> 0
O45: =IFERROR(INDEX(MissingData_FS099, SMALL(IF(ISBLANK(MissingData_FS099)+ISERROR(MissingData_FS099)+LEN(MissingData_FS099)=0, "", ROW(MissingData_FS099)-MIN(ROW(MissingData_FS099))+1), ROW(20:20))),"") -> AUDIO_NFC_N | S45: AUDIO_NFC_N | U45: AUDIONFCN | V45: 1 | Z45: AUDIO_NFC_N | AC45: 1 | BT45: =IF(ISNUMBER(SEARCH($C$6,BU45)),MAX($BT$13:BT44)+1,0) -> 32 | BU45: 0 | BV45: =ROWS($BV$14:BV45) -> 32 | BW45: =IFERROR(VLOOKUP(ROWS($BW$14:BW45),$BT$14:$BU$5000,2,0),"") -> 0
O46: =IFERROR(INDEX(MissingData_FS099, SMALL(IF(ISBLANK(MissingData_FS099)+ISERROR(MissingData_FS099)+LEN(MissingData_FS099)=0, "", ROW(MissingData_FS099)-MIN(ROW(MissingData_FS099))+1), ROW(21:21))),"") -> MEDNURSE_NFC_N | S46: MEDNURSE_NFC_N | U46: MEDNURSENFCN | V46: 1 | Z46: MEDNURSE_NFC_N | AC46: 1 | BT46: =IF(ISNUMBER(SEARCH($C$6,BU46)),MAX($BT$13:BT45)+1,0) -> 33 | BU46: 0 | BV46: =ROWS($BV$14:BV46) -> 33 | BW46: =IFERROR(VLOOKUP(ROWS($BW$14:BW46),$BT$14:$BU$5000,2,0),"") -> 0
O47: =IFERROR(INDEX(MissingData_FS099, SMALL(IF(ISBLANK(MissingData_FS099)+ISERROR(MissingData_FS099)+LEN(MissingData_FS099)=0, "", ROW(MissingData_FS099)-MIN(ROW(MissingData_FS099))+1), ROW(22:22))),"") -> PEANDREC_NFC_N | S47: PEANDREC_NFC_N | U47: PEANDRECNFCN | V47: 1 | Z47: PEANDREC_NFC_N | AC47: 1 | BT47: =IF(ISNUMBER(SEARCH($C$6,BU47)),MAX($BT$13:BT46)+1,0) -> 34 | BU47: 0 | BV47: =ROWS($BV$14:BV47) -> 34 | BW47: =IFERROR(VLOOKUP(ROWS($BW$14:BW47),$BT$14:$BU$5000,2,0),"") -> 0
O48: =IFERROR(INDEX(MissingData_FS099, SMALL(IF(ISBLANK(MissingData_FS099)+ISERROR(MissingData_FS099)+LEN(MissingData_FS099)=0, "", ROW(MissingData_FS099)-MIN(ROW(MissingData_FS099))+1), ROW(23:23))),"") -> AUDIO__Y | S48: AUDIO__Y | U48: AUDIOY | V48: 1 | Z48: AUDIO__Y | AC48: 1 | BT48: =IF(ISNUMBER(SEARCH($C$6,BU48)),MAX($BT$13:BT47)+1,0) -> 35 | BU48: 0 | BV48: =ROWS($BV$14:BV48) -> 35 | BW48: =IFERROR(VLOOKUP(ROWS($BW$14:BW48),$BT$14:$BU$5000,2,0),"") -> 0
O49: =IFERROR(INDEX(MissingData_FS099, SMALL(IF(ISBLANK(MissingData_FS099)+ISERROR(MissingData_FS099)+LEN(MissingData_FS099)=0, "", ROW(MissingData_FS099)-MIN(ROW(MissingData_FS099))+1), ROW(24:24))),"") -> COUNSELOR__Y | S49: COUNSELOR__Y | U49: COUNSELORY | V49: 1 | Z49: COUNSELOR__Y | AC49: 1 | BT49: =IF(ISNUMBER(SEARCH($C$6,BU49)),MAX($BT$13:BT48)+1,0) -> 36 | BU49: 0 | BV49: =ROWS($BV$14:BV49) -> 36 | BW49: =IFERROR(VLOOKUP(ROWS($BW$14:BW49),$BT$14:$BU$5000,2,0),"") -> 0
O50: =IFERROR(INDEX(MissingData_FS099, SMALL(IF(ISBLANK(MissingData_FS099)+ISERROR(MissingData_FS099)+LEN(MissingData_FS099)=0, "", ROW(MissingData_FS099)-MIN(ROW(MissingData_FS099))+1), ROW(25:25))),"") -> INTERPRET__Y | S50: INTERPRET__Y | U50: INTERPRETY | V50: 1 | Z50: INTERPRET__Y | AC50: 1 | BT50: =IF(ISNUMBER(SEARCH($C$6,BU50)),MAX($BT$13:BT49)+1,0) -> 37 | BU50: 0 | BV50: =ROWS($BV$14:BV50) -> 37 | BW50: =IFERROR(VLOOKUP(ROWS($BW$14:BW50),$BT$14:$BU$5000,2,0),"") -> 0
O51: =IFERROR(INDEX(MissingData_FS099, SMALL(IF(ISBLANK(MissingData_FS099)+ISERROR(MissingData_FS099)+LEN(MissingData_FS099)=0, "", ROW(MissingData_FS099)-MIN(ROW(MissingData_FS099))+1), ROW(26:26))),"") -> MEDNURSE__Y | S51: MEDNURSE__Y | U51: MEDNURSEY | V51: 1 | Z51: MEDNURSE__Y | AC51: 1 | BT51: =IF(ISNUMBER(SEARCH($C$6,BU51)),MAX($BT$13:BT50)+1,0) -> 38 | BU51: 0 | BV51: =ROWS($BV$14:BV51) -> 38 | BW51: =IFERROR(VLOOKUP(ROWS($BW$14:BW51),$BT$14:$BU$5000,2,0),"") -> 0
O52: =IFERROR(INDEX(MissingData_FS099, SMALL(IF(ISBLANK(MissingData_FS099)+ISERROR(MissingData_FS099)+LEN(MissingData_FS099)=0, "", ROW(MissingData_FS099)-MIN(ROW(MissingData_FS099))+1), ROW(27:27))),"") -> OCCTHERAP__Y | S52: OCCTHERAP__Y | U52: OCCTHERAPY | V52: 1 | Z52: OCCTHERAP__Y | AC52: 1 | BT52: =IF(ISNUMBER(SEARCH($C$6,BU52)),MAX($BT$13:BT51)+1,0) -> 39 | BU52: 0 | BV52: =ROWS($BV$14:BV52) -> 39 | BW52: =IFERROR(VLOOKUP(ROWS($BW$14:BW52),$BT$14:$BU$5000,2,0),"") -> 0
O53: =IFERROR(INDEX(MissingData_FS099, SMALL(IF(ISBLANK(MissingData_FS099)+ISERROR(MissingData_FS099)+LEN(MissingData_FS099)=0, "", ROW(MissingData_FS099)-MIN(ROW(MissingData_FS099))+1), ROW(28:28))),"") -> ORIENTMOBIL__Y | S53: ORIENTMOBIL__Y | U53: ORIENTMOBILY | V53: 1 | Z53: ORIENTMOBIL__Y | AC53: 1 | BT53: =IF(ISNUMBER(SEARCH($C$6,BU53)),MAX($BT$13:BT52)+1,0) -> 40 | BU53: 0 | BV53: =ROWS($BV$14:BV53) -> 40 | BW53: =IFERROR(VLOOKUP(ROWS($BW$14:BW53),$BT$14:$BU$5000,2,0),"") -> 0
O54: =IFERROR(INDEX(MissingData_FS099, SMALL(IF(ISBLANK(MissingData_FS099)+ISERROR(MissingData_FS099)+LEN(MissingData_FS099)=0, "", ROW(MissingData_FS099)-MIN(ROW(MissingData_FS099))+1), ROW(29:29))),"") -> PEANDREC__Y | S54: PEANDREC__Y | U54: PEANDRECY | V54: 1 | Z54: PEANDREC__Y | AC54: 1 | BT54: =IF(ISNUMBER(SEARCH($C$6,BU54)),MAX($BT$13:BT53)+1,0) -> 41 | BU54: 0 | BV54: =ROWS($BV$14:BV54) -> 41 | BW54: =IFERROR(VLOOKUP(ROWS($BW$14:BW54),$BT$14:$BU$5000,2,0),"") -> 0
O55: =IFERROR(INDEX(MissingData_FS099, SMALL(IF(ISBLANK(MissingData_FS099)+ISERROR(MissingData_FS099)+LEN(MissingData_FS099)=0, "", ROW(MissingData_FS099)-MIN(ROW(MissingData_FS099))+1), ROW(30:30))),"") -> PHYSTHERAP__Y | S55: PHYSTHERAP__Y | U55: PHYSTHERAPY | V55: 1 | Z55: PHYSTHERAP__Y | AC55: 1 | BT55: =IF(ISNUMBER(SEARCH($C$6,BU55)),MAX($BT$13:BT54)+1,0) -> 42 | BU55: 0 | BV55: =ROWS($BV$14:BV55) -> 42 | BW55: =IFERROR(VLOOKUP(ROWS($BW$14:BW55),$BT$14:$BU$5000,2,0),"") -> 0
O56: =IFERROR(INDEX(MissingData_FS099, SMALL(IF(ISBLANK(MissingData_FS099)+ISERROR(MissingData_FS099)+LEN(MissingData_FS099)=0, "", ROW(MissingData_FS099)-MIN(ROW(MissingData_FS099))+1), ROW(31:31))),"") -> PSYCH__Y | S56: PSYCH__Y | U56: PSYCHY | V56: 1 | Z56: PSYCH__Y | AC56: 1 | BT56: =IF(ISNUMBER(SEARCH($C$6,BU56)),MAX($BT$13:BT55)+1,0) -> 43 | BU56: 0 | BV56: =ROWS($BV$14:BV56) -> 43 | BW56: =IFERROR(VLOOKUP(ROWS($BW$14:BW56),$BT$14:$BU$5000,2,0),"") -> 0
O57: =IFERROR(INDEX(MissingData_FS099, SMALL(IF(ISBLANK(MissingData_FS099)+ISERROR(MissingData_FS099)+LEN(MissingData_FS099)=0, "", ROW(MissingData_FS099)-MIN(ROW(MissingData_FS099))+1), ROW(32:32))),"") -> SOCIALWORK__Y | S57: SOCIALWORK__Y | U57: SOCIALWORKY | V57: 1 | Z57: SOCIALWORK__Y | AC57: 1 | BT57: =IF(ISNUMBER(SEARCH($C$6,BU57)),MAX($BT$13:BT56)+1,0) -> 44 | BU57: 0 | BV57: =ROWS($BV$14:BV57) -> 44 | BW57: =IFERROR(VLOOKUP(ROWS($BW$14:BW57),$BT$14:$BU$5000,2,0),"") -> 0
A58: =IF(AS46="","",AS46) ->  | O58: =IFERROR(INDEX(MissingData_FS099, SMALL(IF(ISBLANK(MissingData_FS099)+ISERROR(MissingData_FS099)+LEN(MissingData_FS099)=0, "", ROW(MissingData_FS099)-MIN(ROW(MissingData_FS099))+1), ROW(33:33))),"") -> SPEECHPATH__Y | S58: SPEECHPATH__Y | U58: SPEECHPATHY | V58: 1 | Z58: SPEECHPATH__Y | AC58: 1 | BT58: =IF(ISNUMBER(SEARCH($C$6,BU58)),MAX($BT$13:BT57)+1,0) -> 45 | BU58: 0 | BV58: =ROWS($BV$14:BV58) -> 45 | BW58: =IFERROR(VLOOKUP(ROWS($BW$14:BW58),$BT$14:$BU$5000,2,0),"") -> 0
BT59: =IF(ISNUMBER(SEARCH($C$6,BU59)),MAX($BT$13:BT58)+1,0) -> 46 | BU59: 0 | BV59: =ROWS($BV$14:BV59) -> 46 | BW59: =IFERROR(VLOOKUP(ROWS($BW$14:BW59),$BT$14:$BU$5000,2,0),"") -> 0
A60: =BF12 -> FS112 — Special Education Paraprofessionals | O60: Data quality checks | BT60: =IF(ISNUMBER(SEARCH($C$6,BU60)),MAX($BT$13:BT59)+1,0) -> 47 | BU60: 0 | BV60: =ROWS($BV$14:BV60) -> 47 | BW60: =IFERROR(VLOOKUP(ROWS($BW$14:BW60),$BT$14:$BU$5000,2,0),"") -> 0
A61: =BF13 -> File record number | B61: =BG13 -> State code | C61: State agency number | D61: LEA identifier (state) | E61: Filler | F61: Table name | G61: Filler | H61: Age group | I61: Qualification status | J61: Filler | K61: Total indicator | L61: Explanation | M61: Staff FTE | O61: Data elements not included for this LEA | P61: Duplicate row elements | Q61: Invalid data elements | S61: Missing Data Element | T61: Current Listing | U61: Master Listing | V61: Is Blank | X61: =COUNTIF(O63:O76,"*" & $Y$11 & "*") -> 8 | Y61: MISSING | Z61: Master Listing (output) | AA61: Current Listing (output) | AC61: Is Missing Data Element | BT61: =IF(ISNUMBER(SEARCH($C$6,BU61)),MAX($BT$13:BT60)+1,0) -> 48 | BU61: 0 | BV61: =ROWS($BV$14:BV61) -> 48 | BW61: =IFERROR(VLOOKUP(ROWS($BW$14:BW61),$BT$14:$BU$5000,2,0),"") -> 0
A62: =IF(BF14="","",BF14) ->  | B62: =IF(BG14="","",BG14) ->  | O62: =IFERROR(INDEX(MissingData_FS112, SMALL(IF(ISBLANK(MissingData_FS112)+ISERROR(MissingData_FS112)+LEN(MissingData_FS112)=0, "", ROW(MissingData_FS112)-MIN(ROW(MissingData_FS112))+1), ROW(1:1))),"") -> 3TO5_Q_N | P62: =IF(COUNTIF(CurrentListing_C112,T62)>1,AA62,"") ->  | Q62: =IF(LEN(T62)=0,"",IF(ISNA(MATCH(T62,MasterListing_FS112,0)),AA62,"")) ->  | S62: =IF(LEN(Z62)=0,"",IF(ISNA(MATCH(U62,CurrentListing_C112,0)),Z62,"")) -> 3TO5_Q_N | T62: =H62&I62&K62 ->  | U62: 3TO5QN | V62: =IF(LEN(O62)>0,1,0) -> 1 | Z62: 3TO5_Q_N | AA62: =IF(LEN(H62&"_"&I62&"_"&K62)<3,"",H62&"_"&I62&"_"&K62) ->  | AC62: =IF(LEN(O62)>0,1,0) -> 1 | BT62: =IF(ISNUMBER(SEARCH($C$6,BU62)),MAX($BT$13:BT61)+1,0) -> 49 | BU62: 0 | BV62: =ROWS($BV$14:BV62) -> 49 | BW62: =IFERROR(VLOOKUP(ROWS($BW$14:BW62),$BT$14:$BU$5000,2,0),"") -> 0
A63: =IF(BF15="","",BF15) ->  | O63: =IFERROR(INDEX(MissingData_FS112, SMALL(IF(ISBLANK(MissingData_FS112)+ISERROR(MissingData_FS112)+LEN(MissingData_FS112)=0, "", ROW(MissingData_FS112)-MIN(ROW(MissingData_FS112))+1), ROW(2:2))),"") -> 6TO21_Q_N | S63: 6TO21_Q_N | U63: 6TO21QN | V63: 1 | Z63: 6TO21_Q_N | AC63: 1 | BT63: =IF(ISNUMBER(SEARCH($C$6,BU63)),MAX($BT$13:BT62)+1,0) -> 50 | BU63: 0 | BV63: =ROWS($BV$14:BV63) -> 50 | BW63: =IFERROR(VLOOKUP(ROWS($BW$14:BW63),$BT$14:$BU$5000,2,0),"") -> 0
O64: =IFERROR(INDEX(MissingData_FS112, SMALL(IF(ISBLANK(MissingData_FS112)+ISERROR(MissingData_FS112)+LEN(MissingData_FS112)=0, "", ROW(MissingData_FS112)-MIN(ROW(MissingData_FS112))+1), ROW(3:3))),"") -> 3TO5_NQ_N | S64: 3TO5_NQ_N | U64: 3TO5NQN | V64: 1 | Z64: 3TO5_NQ_N | AC64: 1 | BT64: =IF(ISNUMBER(SEARCH($C$6,BU64)),MAX($BT$13:BT63)+1,0) -> 51 | BU64: 0 | BV64: =ROWS($BV$14:BV64) -> 51 | BW64: =IFERROR(VLOOKUP(ROWS($BW$14:BW64),$BT$14:$BU$5000,2,0),"") -> 0
O65: =IFERROR(INDEX(MissingData_FS112, SMALL(IF(ISBLANK(MissingData_FS112)+ISERROR(MissingData_FS112)+LEN(MissingData_FS112)=0, "", ROW(MissingData_FS112)-MIN(ROW(MissingData_FS112))+1), ROW(4:4))),"") -> 6TO21_NQ_N | S65: 6TO21_NQ_N | U65: 6TO21NQN | V65: 1 | Z65: 6TO21_NQ_N | AC65: 1 | BT65: =IF(ISNUMBER(SEARCH($C$6,BU65)),MAX($BT$13:BT64)+1,0) -> 52 | BU65: 0 | BV65: =ROWS($BV$14:BV65) -> 52 | BW65: =IFERROR(VLOOKUP(ROWS($BW$14:BW65),$BT$14:$BU$5000,2,0),"") -> 0
O66: =IFERROR(INDEX(MissingData_FS112, SMALL(IF(ISBLANK(MissingData_FS112)+ISERROR(MissingData_FS112)+LEN(MissingData_FS112)=0, "", ROW(MissingData_FS112)-MIN(ROW(MissingData_FS112))+1), ROW(5:5))),"") -> 3TO5__Y | S66: 3TO5__Y | U66: 3TO5Y | V66: 1 | Z66: 3TO5__Y | AC66: 1 | BT66: =IF(ISNUMBER(SEARCH($C$6,BU66)),MAX($BT$13:BT65)+1,0) -> 53 | BU66: 0 | BV66: =ROWS($BV$14:BV66) -> 53 | BW66: =IFERROR(VLOOKUP(ROWS($BW$14:BW66),$BT$14:$BU$5000,2,0),"") -> 0
O67: =IFERROR(INDEX(MissingData_FS112, SMALL(IF(ISBLANK(MissingData_FS112)+ISERROR(MissingData_FS112)+LEN(MissingData_FS112)=0, "", ROW(MissingData_FS112)-MIN(ROW(MissingData_FS112))+1), ROW(6:6))),"") -> 6TO21__Y | S67: 6TO21__Y | U67: 6TO21Y | V67: 1 | Z67: 6TO21__Y | AC67: 1 | BT67: =IF(ISNUMBER(SEARCH($C$6,BU67)),MAX($BT$13:BT66)+1,0) -> 54 | BU67: 0 | BV67: =ROWS($BV$14:BV67) -> 54 | BW67: =IFERROR(VLOOKUP(ROWS($BW$14:BW67),$BT$14:$BU$5000,2,0),"") -> 0
O68: =IFERROR(INDEX(MissingData_FS112, SMALL(IF(ISBLANK(MissingData_FS112)+ISERROR(MissingData_FS112)+LEN(MissingData_FS112)=0, "", ROW(MissingData_FS112)-MIN(ROW(MissingData_FS112))+1), ROW(7:7))),"") -> _Q_Y | S68: _Q_Y | U68: QY | V68: 1 | Z68: _Q_Y | AC68: 1 | BT68: =IF(ISNUMBER(SEARCH($C$6,BU68)),MAX($BT$13:BT67)+1,0) -> 55 | BU68: 0 | BV68: =ROWS($BV$14:BV68) -> 55 | BW68: =IFERROR(VLOOKUP(ROWS($BW$14:BW68),$BT$14:$BU$5000,2,0),"") -> 0
O69: =IFERROR(INDEX(MissingData_FS112, SMALL(IF(ISBLANK(MissingData_FS112)+ISERROR(MissingData_FS112)+LEN(MissingData_FS112)=0, "", ROW(MissingData_FS112)-MIN(ROW(MissingData_FS112))+1), ROW(8:8))),"") -> _NQ_Y | S69: _NQ_Y | U69: NQY | V69: 1 | Z69: _NQ_Y | AC69: 1 | BT69: =IF(ISNUMBER(SEARCH($C$6,BU69)),MAX($BT$13:BT68)+1,0) -> 56 | BU69: 0 | BV69: =ROWS($BV$14:BV69) -> 56 | BW69: =IFERROR(VLOOKUP(ROWS($BW$14:BW69),$BT$14:$BU$5000,2,0),"") -> 0
O70: =IFERROR(INDEX(MissingData_FS112, SMALL(IF(ISBLANK(MissingData_FS112)+ISERROR(MissingData_FS112)+LEN(MissingData_FS112)=0, "", ROW(MissingData_FS112)-MIN(ROW(MissingData_FS112))+1), ROW(9:9))),"") -> __Y | S70: __Y | U70: Y | V70: 1 | Z70: __Y | AC70: 1 | BT70: =IF(ISNUMBER(SEARCH($C$6,BU70)),MAX($BT$13:BT69)+1,0) -> 57 | BU70: 0 | BV70: =ROWS($BV$14:BV70) -> 57 | BW70: =IFERROR(VLOOKUP(ROWS($BW$14:BW70),$BT$14:$BU$5000,2,0),"") -> 0
BT71: =IF(ISNUMBER(SEARCH($C$6,BU71)),MAX($BT$13:BT70)+1,0) -> 58 | BU71: 0 | BV71: =ROWS($BV$14:BV71) -> 58 | BW71: =IFERROR(VLOOKUP(ROWS($BW$14:BW71),$BT$14:$BU$5000,2,0),"") -> 0
BT72: =IF(ISNUMBER(SEARCH($C$6,BU72)),MAX($BT$13:BT71)+1,0) -> 59 | BU72: 0 | BV72: =ROWS($BV$14:BV72) -> 59 | BW72: =IFERROR(VLOOKUP(ROWS($BW$14:BW72),$BT$14:$BU$5000,2,0),"") -> 0
S73: =IF(LEN(U73)=0,"",IF(ISNA(MATCH(U73,CurrentListing_C112,0)),Z73,"")) ->  | T73: =H73&I73&K73 ->  | V73: =IF(LEN(O73)>0,1,0) -> 0 | AA73: =IF(LEN(H73&"_"&I73&"_"&K73)<3,"",H73&"_"&I73&"_"&K73) ->  | AC73: =IF(LEN(O73)>0,1,0) -> 0 | BT73: =IF(ISNUMBER(SEARCH($C$6,BU73)),MAX($BT$13:BT72)+1,0) -> 60 | BU73: 0 | BV73: =ROWS($BV$14:BV73) -> 60 | BW73: =IFERROR(VLOOKUP(ROWS($BW$14:BW73),$BT$14:$BU$5000,2,0),"") -> 0
T74: =H74&I74&K74 ->  | V74: =IF(LEN(O74)>0,1,0) -> 0 | AA74: =IF(LEN(H74&"_"&I74&"_"&K74)<3,"",H74&"_"&I74&"_"&K74) ->  | AC74: =IF(LEN(O74)>0,1,0) -> 0 | BT74: =IF(ISNUMBER(SEARCH($C$6,BU74)),MAX($BT$13:BT73)+1,0) -> 61 | BU74: 0 | BV74: =ROWS($BV$14:BV74) -> 61 | BW74: =IFERROR(VLOOKUP(ROWS($BW$14:BW74),$BT$14:$BU$5000,2,0),"") -> 0
T75: =H75&I75&K75 ->  | V75: =IF(LEN(O75)>0,1,0) -> 0 | AA75: =IF(LEN(H75&"_"&I75&"_"&K75)<3,"",H75&"_"&I75&"_"&K75) ->  | AC75: =IF(LEN(O75)>0,1,0) -> 0 | BT75: =IF(ISNUMBER(SEARCH($C$6,BU75)),MAX($BT$13:BT74)+1,0) -> 62 | BU75: 0 | BV75: =ROWS($BV$14:BV75) -> 62 | BW75: =IFERROR(VLOOKUP(ROWS($BW$14:BW75),$BT$14:$BU$5000,2,0),"") -> 0
BT76: =IF(ISNUMBER(SEARCH($C$6,BU76)),MAX($BT$13:BT75)+1,0) -> 63 | BU76: 0 | BV76: =ROWS($BV$14:BV76) -> 63 | BW76: =IFERROR(VLOOKUP(ROWS($BW$14:BW76),$BT$14:$BU$5000,2,0),"") -> 0
BT77: =IF(ISNUMBER(SEARCH($C$6,BU77)),MAX($BT$13:BT76)+1,0) -> 64 | BU77: 0 | BV77: =ROWS($BV$14:BV77) -> 64 | BW77: =IFERROR(VLOOKUP(ROWS($BW$14:BW77),$BT$14:$BU$5000,2,0),"") -> 0
BT78: =IF(ISNUMBER(SEARCH($C$6,BU78)),MAX($BT$13:BT77)+1,0) -> 65 | BU78: 0 | BV78: =ROWS($BV$14:BV78) -> 65 | BW78: =IFERROR(VLOOKUP(ROWS($BW$14:BW78),$BT$14:$BU$5000,2,0),"") -> 0
BT79: =IF(ISNUMBER(SEARCH($C$6,BU79)),MAX($BT$13:BT78)+1,0) -> 66 | BU79: 0 | BV79: =ROWS($BV$14:BV79) -> 66 | BW79: =IFERROR(VLOOKUP(ROWS($BW$14:BW79),$BT$14:$BU$5000,2,0),"") -> 0
BT80: =IF(ISNUMBER(SEARCH($C$6,BU80)),MAX($BT$13:BT79)+1,0) -> 67 | BU80: 0 | BV80: =ROWS($BV$14:BV80) -> 67 | BW80: =IFERROR(VLOOKUP(ROWS($BW$14:BW80),$BT$14:$BU$5000,2,0),"") -> 0
BT81: =IF(ISNUMBER(SEARCH($C$6,BU81)),MAX($BT$13:BT80)+1,0) -> 68 | BU81: 0 | BV81: =ROWS($BV$14:BV81) -> 68 | BW81: =IFERROR(VLOOKUP(ROWS($BW$14:BW81),$BT$14:$BU$5000,2,0),"") -> 0
BT82: =IF(ISNUMBER(SEARCH($C$6,BU82)),MAX($BT$13:BT81)+1,0) -> 69 | BU82: 0 | BV82: =ROWS($BV$14:BV82) -> 69 | BW82: =IFERROR(VLOOKUP(ROWS($BW$14:BW82),$BT$14:$BU$5000,2,0),"") -> 0
BT83: =IF(ISNUMBER(SEARCH($C$6,BU83)),MAX($BT$13:BT82)+1,0) -> 70 | BU83: 0 | BV83: =ROWS($BV$14:BV83) -> 70 | BW83: =IFERROR(VLOOKUP(ROWS($BW$14:BW83),$BT$14:$BU$5000,2,0),"") -> 0
BT84: =IF(ISNUMBER(SEARCH($C$6,BU84)),MAX($BT$13:BT83)+1,0) -> 71 | BU84: 0 | BV84: =ROWS($BV$14:BV84) -> 71 | BW84: =IFERROR(VLOOKUP(ROWS($BW$14:BW84),$BT$14:$BU$5000,2,0),"") -> 0
BT85: =IF(ISNUMBER(SEARCH($C$6,BU85)),MAX($BT$13:BT84)+1,0) -> 72 | BU85: 0 | BV85: =ROWS($BV$14:BV85) -> 72 | BW85: =IFERROR(VLOOKUP(ROWS($BW$14:BW85),$BT$14:$BU$5000,2,0),"") -> 0
BT86: =IF(ISNUMBER(SEARCH($C$6,BU86)),MAX($BT$13:BT85)+1,0) -> 73 | BU86: 0 | BV86: =ROWS($BV$14:BV86) -> 73 | BW86: =IFERROR(VLOOKUP(ROWS($BW$14:BW86),$BT$14:$BU$5000,2,0),"") -> 0
BT87: =IF(ISNUMBER(SEARCH($C$6,BU87)),MAX($BT$13:BT86)+1,0) -> 74 | BU87: 0 | BV87: =ROWS($BV$14:BV87) -> 74 | BW87: =IFERROR(VLOOKUP(ROWS($BW$14:BW87),$BT$14:$BU$5000,2,0),"") -> 0
BT88: =IF(ISNUMBER(SEARCH($C$6,BU88)),MAX($BT$13:BT87)+1,0) -> 75 | BU88: 0 | BV88: =ROWS($BV$14:BV88) -> 75 | BW88: =IFERROR(VLOOKUP(ROWS($BW$14:BW88),$BT$14:$BU$5000,2,0),"") -> 0
BT89: =IF(ISNUMBER(SEARCH($C$6,BU89)),MAX($BT$13:BT88)+1,0) -> 76 | BU89: 0 | BV89: =ROWS($BV$14:BV89) -> 76 | BW89: =IFERROR(VLOOKUP(ROWS($BW$14:BW89),$BT$14:$BU$5000,2,0),"") -> 0
BT90: =IF(ISNUMBER(SEARCH($C$6,BU90)),MAX($BT$13:BT89)+1,0) -> 77 | BU90: 0 | BV90: =ROWS($BV$14:BV90) -> 77 | BW90: =IFERROR(VLOOKUP(ROWS($BW$14:BW90),$BT$14:$BU$5000,2,0),"") -> 0
BT91: =IF(ISNUMBER(SEARCH($C$6,BU91)),MAX($BT$13:BT90)+1,0) -> 78 | BU91: 0 | BV91: =ROWS($BV$14:BV91) -> 78 | BW91: =IFERROR(VLOOKUP(ROWS($BW$14:BW91),$BT$14:$BU$5000,2,0),"") -> 0
BT92: =IF(ISNUMBER(SEARCH($C$6,BU92)),MAX($BT$13:BT91)+1,0) -> 79 | BU92: 0 | BV92: =ROWS($BV$14:BV92) -> 79 | BW92: =IFERROR(VLOOKUP(ROWS($BW$14:BW92),$BT$14:$BU$5000,2,0),"") -> 0
BT93: =IF(ISNUMBER(SEARCH($C$6,BU93)),MAX($BT$13:BT92)+1,0) -> 80 | BU93: 0 | BV93: =ROWS($BV$14:BV93) -> 80 | BW93: =IFERROR(VLOOKUP(ROWS($BW$14:BW93),$BT$14:$BU$5000,2,0),"") -> 0
BT94: =IF(ISNUMBER(SEARCH($C$6,BU94)),MAX($BT$13:BT93)+1,0) -> 81 | BU94: 0 | BV94: =ROWS($BV$14:BV94) -> 81 | BW94: =IFERROR(VLOOKUP(ROWS($BW$14:BW94),$BT$14:$BU$5000,2,0),"") -> 0
BT95: =IF(ISNUMBER(SEARCH($C$6,BU95)),MAX($BT$13:BT94)+1,0) -> 82 | BU95: 0 | BV95: =ROWS($BV$14:BV95) -> 82 | BW95: =IFERROR(VLOOKUP(ROWS($BW$14:BW95),$BT$14:$BU$5000,2,0),"") -> 0
BT96: =IF(ISNUMBER(SEARCH($C$6,BU96)),MAX($BT$13:BT95)+1,0) -> 83 | BU96: 0 | BV96: =ROWS($BV$14:BV96) -> 83 | BW96: =IFERROR(VLOOKUP(ROWS($BW$14:BW96),$BT$14:$BU$5000,2,0),"") -> 0
BT97: =IF(ISNUMBER(SEARCH($C$6,BU97)),MAX($BT$13:BT96)+1,0) -> 84 | BU97: 0 | BV97: =ROWS($BV$14:BV97) -> 84 | BW97: =IFERROR(VLOOKUP(ROWS($BW$14:BW97),$BT$14:$BU$5000,2,0),"") -> 0
BT98: =IF(ISNUMBER(SEARCH($C$6,BU98)),MAX($BT$13:BT97)+1,0) -> 85 | BU98: 0 | BV98: =ROWS($BV$14:BV98) -> 85 | BW98: =IFERROR(VLOOKUP(ROWS($BW$14:BW98),$BT$14:$BU$5000,2,0),"") -> 0
BT99: =IF(ISNUMBER(SEARCH($C$6,BU99)),MAX($BT$13:BT98)+1,0) -> 86 | BU99: 0 | BV99: =ROWS($BV$14:BV99) -> 86 | BW99: =IFERROR(VLOOKUP(ROWS($BW$14:BW99),$BT$14:$BU$5000,2,0),"") -> 0
BT100: =IF(ISNUMBER(SEARCH($C$6,BU100)),MAX($BT$13:BT99)+1,0) -> 87 | BU100: 0 | BV100: =ROWS($BV$14:BV100) -> 87 | BW100: =IFERROR(VLOOKUP(ROWS($BW$14:BW100),$BT$14:$BU$5000,2,0),"") -> 0
BT101: =IF(ISNUMBER(SEARCH($C$6,BU101)),MAX($BT$13:BT100)+1,0) -> 88 | BU101: 0 | BV101: =ROWS($BV$14:BV101) -> 88 | BW101: =IFERROR(VLOOKUP(ROWS($BW$14:BW101),$BT$14:$BU$5000,2,0),"") -> 0
BT102: =IF(ISNUMBER(SEARCH($C$6,BU102)),MAX($BT$13:BT101)+1,0) -> 89 | BU102: 0 | BV102: =ROWS($BV$14:BV102) -> 89 | BW102: =IFERROR(VLOOKUP(ROWS($BW$14:BW102),$BT$14:$BU$5000,2,0),"") -> 0
BT103: =IF(ISNUMBER(SEARCH($C$6,BU103)),MAX($BT$13:BT102)+1,0) -> 90 | BU103: 0 | BV103: =ROWS($BV$14:BV103) -> 90 | BW103: =IFERROR(VLOOKUP(ROWS($BW$14:BW103),$BT$14:$BU$5000,2,0),"") -> 0
BT104: =IF(ISNUMBER(SEARCH($C$6,BU104)),MAX($BT$13:BT103)+1,0) -> 91 | BU104: 0 | BV104: =ROWS($BV$14:BV104) -> 91 | BW104: =IFERROR(VLOOKUP(ROWS($BW$14:BW104),$BT$14:$BU$5000,2,0),"") -> 0
BT105: =IF(ISNUMBER(SEARCH($C$6,BU105)),MAX($BT$13:BT104)+1,0) -> 92 | BU105: 0 | BV105: =ROWS($BV$14:BV105) -> 92 | BW105: =IFERROR(VLOOKUP(ROWS($BW$14:BW105),$BT$14:$BU$5000,2,0),"") -> 0
BT106: =IF(ISNUMBER(SEARCH($C$6,BU106)),MAX($BT$13:BT105)+1,0) -> 93 | BU106: 0 | BV106: =ROWS($BV$14:BV106) -> 93 | BW106: =IFERROR(VLOOKUP(ROWS($BW$14:BW106),$BT$14:$BU$5000,2,0),"") -> 0
BT107: =IF(ISNUMBER(SEARCH($C$6,BU107)),MAX($BT$13:BT106)+1,0) -> 94 | BU107: 0 | BV107: =ROWS($BV$14:BV107) -> 94 | BW107: =IFERROR(VLOOKUP(ROWS($BW$14:BW107),$BT$14:$BU$5000,2,0),"") -> 0
BT108: =IF(ISNUMBER(SEARCH($C$6,BU108)),MAX($BT$13:BT107)+1,0) -> 95 | BU108: 0 | BV108: =ROWS($BV$14:BV108) -> 95 | BW108: =IFERROR(VLOOKUP(ROWS($BW$14:BW108),$BT$14:$BU$5000,2,0),"") -> 0
BT109: =IF(ISNUMBER(SEARCH($C$6,BU109)),MAX($BT$13:BT108)+1,0) -> 96 | BU109: 0 | BV109: =ROWS($BV$14:BV109) -> 96 | BW109: =IFERROR(VLOOKUP(ROWS($BW$14:BW109),$BT$14:$BU$5000,2,0),"") -> 0
BT110: =IF(ISNUMBER(SEARCH($C$6,BU110)),MAX($BT$13:BT109)+1,0) -> 97 | BU110: 0 | BV110: =ROWS($BV$14:BV110) -> 97 | BW110: =IFERROR(VLOOKUP(ROWS($BW$14:BW110),$BT$14:$BU$5000,2,0),"") -> 0
BT111: =IF(ISNUMBER(SEARCH($C$6,BU111)),MAX($BT$13:BT110)+1,0) -> 98 | BU111: 0 | BV111: =ROWS($BV$14:BV111) -> 98 | BW111: =IFERROR(VLOOKUP(ROWS($BW$14:BW111),$BT$14:$BU$5000,2,0),"") -> 0
BT112: =IF(ISNUMBER(SEARCH($C$6,BU112)),MAX($BT$13:BT111)+1,0) -> 99 | BU112: 0 | BV112: =ROWS($BV$14:BV112) -> 99 | BW112: =IFERROR(VLOOKUP(ROWS($BW$14:BW112),$BT$14:$BU$5000,2,0),"") -> 0
BT113: =IF(ISNUMBER(SEARCH($C$6,BU113)),MAX($BT$13:BT112)+1,0) -> 100 | BU113: 0 | BV113: =ROWS($BV$14:BV113) -> 100 | BW113: =IFERROR(VLOOKUP(ROWS($BW$14:BW113),$BT$14:$BU$5000,2,0),"") -> 0
BT114: =IF(ISNUMBER(SEARCH($C$6,BU114)),MAX($BT$13:BT113)+1,0) -> 101 | BU114: 0 | BV114: =ROWS($BV$14:BV114) -> 101 | BW114: =IFERROR(VLOOKUP(ROWS($BW$14:BW114),$BT$14:$BU$5000,2,0),"") -> 0
BT115: =IF(ISNUMBER(SEARCH($C$6,BU115)),MAX($BT$13:BT114)+1,0) -> 102 | BU115: 0 | BV115: =ROWS($BV$14:BV115) -> 102 | BW115: =IFERROR(VLOOKUP(ROWS($BW$14:BW115),$BT$14:$BU$5000,2,0),"") -> 0
BT116: =IF(ISNUMBER(SEARCH($C$6,BU116)),MAX($BT$13:BT115)+1,0) -> 103 | BU116: 0 | BV116: =ROWS($BV$14:BV116) -> 103 | BW116: =IFERROR(VLOOKUP(ROWS($BW$14:BW116),$BT$14:$BU$5000,2,0),"") -> 0
BT117: =IF(ISNUMBER(SEARCH($C$6,BU117)),MAX($BT$13:BT116)+1,0) -> 104 | BU117: 0 | BV117: =ROWS($BV$14:BV117) -> 104 | BW117: =IFERROR(VLOOKUP(ROWS($BW$14:BW117),$BT$14:$BU$5000,2,0),"") -> 0
BT118: =IF(ISNUMBER(SEARCH($C$6,BU118)),MAX($BT$13:BT117)+1,0) -> 105 | BU118: 0 | BV118: =ROWS($BV$14:BV118) -> 105 | BW118: =IFERROR(VLOOKUP(ROWS($BW$14:BW118),$BT$14:$BU$5000,2,0),"") -> 0
BT119: =IF(ISNUMBER(SEARCH($C$6,BU119)),MAX($BT$13:BT118)+1,0) -> 106 | BU119: 0 | BV119: =ROWS($BV$14:BV119) -> 106 | BW119: =IFERROR(VLOOKUP(ROWS($BW$14:BW119),$BT$14:$BU$5000,2,0),"") -> 0
BT120: =IF(ISNUMBER(SEARCH($C$6,BU120)),MAX($BT$13:BT119)+1,0) -> 107 | BU120: 0 | BV120: =ROWS($BV$14:BV120) -> 107 | BW120: =IFERROR(VLOOKUP(ROWS($BW$14:BW120),$BT$14:$BU$5000,2,0),"") -> 0
BT121: =IF(ISNUMBER(SEARCH($C$6,BU121)),MAX($BT$13:BT120)+1,0) -> 108 | BU121: 0 | BV121: =ROWS($BV$14:BV121) -> 108 | BW121: =IFERROR(VLOOKUP(ROWS($BW$14:BW121),$BT$14:$BU$5000,2,0),"") -> 0
BT122: =IF(ISNUMBER(SEARCH($C$6,BU122)),MAX($BT$13:BT121)+1,0) -> 109 | BU122: 0 | BV122: =ROWS($BV$14:BV122) -> 109 | BW122: =IFERROR(VLOOKUP(ROWS($BW$14:BW122),$BT$14:$BU$5000,2,0),"") -> 0
BT123: =IF(ISNUMBER(SEARCH($C$6,BU123)),MAX($BT$13:BT122)+1,0) -> 110 | BU123: 0 | BV123: =ROWS($BV$14:BV123) -> 110 | BW123: =IFERROR(VLOOKUP(ROWS($BW$14:BW123),$BT$14:$BU$5000,2,0),"") -> 0
BT124: =IF(ISNUMBER(SEARCH($C$6,BU124)),MAX($BT$13:BT123)+1,0) -> 111 | BU124: 0 | BV124: =ROWS($BV$14:BV124) -> 111 | BW124: =IFERROR(VLOOKUP(ROWS($BW$14:BW124),$BT$14:$BU$5000,2,0),"") -> 0
BT125: =IF(ISNUMBER(SEARCH($C$6,BU125)),MAX($BT$13:BT124)+1,0) -> 112 | BU125: 0 | BV125: =ROWS($BV$14:BV125) -> 112 | BW125: =IFERROR(VLOOKUP(ROWS($BW$14:BW125),$BT$14:$BU$5000,2,0),"") -> 0
BT126: =IF(ISNUMBER(SEARCH($C$6,BU126)),MAX($BT$13:BT125)+1,0) -> 113 | BU126: 0 | BV126: =ROWS($BV$14:BV126) -> 113 | BW126: =IFERROR(VLOOKUP(ROWS($BW$14:BW126),$BT$14:$BU$5000,2,0),"") -> 0
BT127: =IF(ISNUMBER(SEARCH($C$6,BU127)),MAX($BT$13:BT126)+1,0) -> 114 | BU127: 0 | BV127: =ROWS($BV$14:BV127) -> 114 | BW127: =IFERROR(VLOOKUP(ROWS($BW$14:BW127),$BT$14:$BU$5000,2,0),"") -> 0
BT128: =IF(ISNUMBER(SEARCH($C$6,BU128)),MAX($BT$13:BT127)+1,0) -> 115 | BU128: 0 | BV128: =ROWS($BV$14:BV128) -> 115 | BW128: =IFERROR(VLOOKUP(ROWS($BW$14:BW128),$BT$14:$BU$5000,2,0),"") -> 0
BT129: =IF(ISNUMBER(SEARCH($C$6,BU129)),MAX($BT$13:BT128)+1,0) -> 116 | BU129: 0 | BV129: =ROWS($BV$14:BV129) -> 116 | BW129: =IFERROR(VLOOKUP(ROWS($BW$14:BW129),$BT$14:$BU$5000,2,0),"") -> 0
BT130: =IF(ISNUMBER(SEARCH($C$6,BU130)),MAX($BT$13:BT129)+1,0) -> 117 | BU130: 0 | BV130: =ROWS($BV$14:BV130) -> 117 | BW130: =IFERROR(VLOOKUP(ROWS($BW$14:BW130),$BT$14:$BU$5000,2,0),"") -> 0
BT131: =IF(ISNUMBER(SEARCH($C$6,BU131)),MAX($BT$13:BT130)+1,0) -> 118 | BU131: 0 | BV131: =ROWS($BV$14:BV131) -> 118 | BW131: =IFERROR(VLOOKUP(ROWS($BW$14:BW131),$BT$14:$BU$5000,2,0),"") -> 0
BT132: =IF(ISNUMBER(SEARCH($C$6,BU132)),MAX($BT$13:BT131)+1,0) -> 119 | BU132: 0 | BV132: =ROWS($BV$14:BV132) -> 119 | BW132: =IFERROR(VLOOKUP(ROWS($BW$14:BW132),$BT$14:$BU$5000,2,0),"") -> 0
BT133: =IF(ISNUMBER(SEARCH($C$6,BU133)),MAX($BT$13:BT132)+1,0) -> 120 | BU133: 0 | BV133: =ROWS($BV$14:BV133) -> 120 | BW133: =IFERROR(VLOOKUP(ROWS($BW$14:BW133),$BT$14:$BU$5000,2,0),"") -> 0
BT134: =IF(ISNUMBER(SEARCH($C$6,BU134)),MAX($BT$13:BT133)+1,0) -> 121 | BU134: 0 | BV134: =ROWS($BV$14:BV134) -> 121 | BW134: =IFERROR(VLOOKUP(ROWS($BW$14:BW134),$BT$14:$BU$5000,2,0),"") -> 0
BT135: =IF(ISNUMBER(SEARCH($C$6,BU135)),MAX($BT$13:BT134)+1,0) -> 122 | BU135: 0 | BV135: =ROWS($BV$14:BV135) -> 122 | BW135: =IFERROR(VLOOKUP(ROWS($BW$14:BW135),$BT$14:$BU$5000,2,0),"") -> 0
BT136: =IF(ISNUMBER(SEARCH($C$6,BU136)),MAX($BT$13:BT135)+1,0) -> 123 | BU136: 0 | BV136: =ROWS($BV$14:BV136) -> 123 | BW136: =IFERROR(VLOOKUP(ROWS($BW$14:BW136),$BT$14:$BU$5000,2,0),"") -> 0
BT137: =IF(ISNUMBER(SEARCH($C$6,BU137)),MAX($BT$13:BT136)+1,0) -> 124 | BU137: 0 | BV137: =ROWS($BV$14:BV137) -> 124 | BW137: =IFERROR(VLOOKUP(ROWS($BW$14:BW137),$BT$14:$BU$5000,2,0),"") -> 0
BT138: =IF(ISNUMBER(SEARCH($C$6,BU138)),MAX($BT$13:BT137)+1,0) -> 125 | BU138: 0 | BV138: =ROWS($BV$14:BV138) -> 125 | BW138: =IFERROR(VLOOKUP(ROWS($BW$14:BW138),$BT$14:$BU$5000,2,0),"") -> 0
BT139: =IF(ISNUMBER(SEARCH($C$6,BU139)),MAX($BT$13:BT138)+1,0) -> 126 | BU139: 0 | BV139: =ROWS($BV$14:BV139) -> 126 | BW139: =IFERROR(VLOOKUP(ROWS($BW$14:BW139),$BT$14:$BU$5000,2,0),"") -> 0
BT140: =IF(ISNUMBER(SEARCH($C$6,BU140)),MAX($BT$13:BT139)+1,0) -> 127 | BU140: 0 | BV140: =ROWS($BV$14:BV140) -> 127 | BW140: =IFERROR(VLOOKUP(ROWS($BW$14:BW140),$BT$14:$BU$5000,2,0),"") -> 0
BT141: =IF(ISNUMBER(SEARCH($C$6,BU141)),MAX($BT$13:BT140)+1,0) -> 128 | BU141: 0 | BV141: =ROWS($BV$14:BV141) -> 128 | BW141: =IFERROR(VLOOKUP(ROWS($BW$14:BW141),$BT$14:$BU$5000,2,0),"") -> 0
BT142: =IF(ISNUMBER(SEARCH($C$6,BU142)),MAX($BT$13:BT141)+1,0) -> 129 | BU142: 0 | BV142: =ROWS($BV$14:BV142) -> 129 | BW142: =IFERROR(VLOOKUP(ROWS($BW$14:BW142),$BT$14:$BU$5000,2,0),"") -> 0
BT143: =IF(ISNUMBER(SEARCH($C$6,BU143)),MAX($BT$13:BT142)+1,0) -> 130 | BU143: 0 | BV143: =ROWS($BV$14:BV143) -> 130 | BW143: =IFERROR(VLOOKUP(ROWS($BW$14:BW143),$BT$14:$BU$5000,2,0),"") -> 0
BT144: =IF(ISNUMBER(SEARCH($C$6,BU144)),MAX($BT$13:BT143)+1,0) -> 131 | BU144: 0 | BV144: =ROWS($BV$14:BV144) -> 131 | BW144: =IFERROR(VLOOKUP(ROWS($BW$14:BW144),$BT$14:$BU$5000,2,0),"") -> 0
BT145: =IF(ISNUMBER(SEARCH($C$6,BU145)),MAX($BT$13:BT144)+1,0) -> 132 | BU145: 0 | BV145: =ROWS($BV$14:BV145) -> 132 | BW145: =IFERROR(VLOOKUP(ROWS($BW$14:BW145),$BT$14:$BU$5000,2,0),"") -> 0
BT146: =IF(ISNUMBER(SEARCH($C$6,BU146)),MAX($BT$13:BT145)+1,0) -> 133 | BU146: 0 | BV146: =ROWS($BV$14:BV146) -> 133 | BW146: =IFERROR(VLOOKUP(ROWS($BW$14:BW146),$BT$14:$BU$5000,2,0),"") -> 0
BT147: =IF(ISNUMBER(SEARCH($C$6,BU147)),MAX($BT$13:BT146)+1,0) -> 134 | BU147: 0 | BV147: =ROWS($BV$14:BV147) -> 134 | BW147: =IFERROR(VLOOKUP(ROWS($BW$14:BW147),$BT$14:$BU$5000,2,0),"") -> 0
BT148: =IF(ISNUMBER(SEARCH($C$6,BU148)),MAX($BT$13:BT147)+1,0) -> 135 | BU148: 0 | BV148: =ROWS($BV$14:BV148) -> 135 | BW148: =IFERROR(VLOOKUP(ROWS($BW$14:BW148),$BT$14:$BU$5000,2,0),"") -> 0
BT149: =IF(ISNUMBER(SEARCH($C$6,BU149)),MAX($BT$13:BT148)+1,0) -> 136 | BU149: 0 | BV149: =ROWS($BV$14:BV149) -> 136 | BW149: =IFERROR(VLOOKUP(ROWS($BW$14:BW149),$BT$14:$BU$5000,2,0),"") -> 0
BT150: =IF(ISNUMBER(SEARCH($C$6,BU150)),MAX($BT$13:BT149)+1,0) -> 137 | BU150: 0 | BV150: =ROWS($BV$14:BV150) -> 137 | BW150: =IFERROR(VLOOKUP(ROWS($BW$14:BW150),$BT$14:$BU$5000,2,0),"") -> 0
BT151: =IF(ISNUMBER(SEARCH($C$6,BU151)),MAX($BT$13:BT150)+1,0) -> 138 | BU151: 0 | BV151: =ROWS($BV$14:BV151) -> 138 | BW151: =IFERROR(VLOOKUP(ROWS($BW$14:BW151),$BT$14:$BU$5000,2,0),"") -> 0
BT152: =IF(ISNUMBER(SEARCH($C$6,BU152)),MAX($BT$13:BT151)+1,0) -> 139 | BU152: 0 | BV152: =ROWS($BV$14:BV152) -> 139 | BW152: =IFERROR(VLOOKUP(ROWS($BW$14:BW152),$BT$14:$BU$5000,2,0),"") -> 0
BT153: =IF(ISNUMBER(SEARCH($C$6,BU153)),MAX($BT$13:BT152)+1,0) -> 140 | BU153: 0 | BV153: =ROWS($BV$14:BV153) -> 140 | BW153: =IFERROR(VLOOKUP(ROWS($BW$14:BW153),$BT$14:$BU$5000,2,0),"") -> 0
BT154: =IF(ISNUMBER(SEARCH($C$6,BU154)),MAX($BT$13:BT153)+1,0) -> 141 | BU154: 0 | BV154: =ROWS($BV$14:BV154) -> 141 | BW154: =IFERROR(VLOOKUP(ROWS($BW$14:BW154),$BT$14:$BU$5000,2,0),"") -> 0
BT155: =IF(ISNUMBER(SEARCH($C$6,BU155)),MAX($BT$13:BT154)+1,0) -> 142 | BU155: 0 | BV155: =ROWS($BV$14:BV155) -> 142 | BW155: =IFERROR(VLOOKUP(ROWS($BW$14:BW155),$BT$14:$BU$5000,2,0),"") -> 0
BT156: =IF(ISNUMBER(SEARCH($C$6,BU156)),MAX($BT$13:BT155)+1,0) -> 143 | BU156: 0 | BV156: =ROWS($BV$14:BV156) -> 143 | BW156: =IFERROR(VLOOKUP(ROWS($BW$14:BW156),$BT$14:$BU$5000,2,0),"") -> 0
BT157: =IF(ISNUMBER(SEARCH($C$6,BU157)),MAX($BT$13:BT156)+1,0) -> 144 | BU157: 0 | BV157: =ROWS($BV$14:BV157) -> 144 | BW157: =IFERROR(VLOOKUP(ROWS($BW$14:BW157),$BT$14:$BU$5000,2,0),"") -> 0
BT158: =IF(ISNUMBER(SEARCH($C$6,BU158)),MAX($BT$13:BT157)+1,0) -> 145 | BU158: 0 | BV158: =ROWS($BV$14:BV158) -> 145 | BW158: =IFERROR(VLOOKUP(ROWS($BW$14:BW158),$BT$14:$BU$5000,2,0),"") -> 0
BT159: =IF(ISNUMBER(SEARCH($C$6,BU159)),MAX($BT$13:BT158)+1,0) -> 146 | BU159: 0 | BV159: =ROWS($BV$14:BV159) -> 146 | BW159: =IFERROR(VLOOKUP(ROWS($BW$14:BW159),$BT$14:$BU$5000,2,0),"") -> 0
BT160: =IF(ISNUMBER(SEARCH($C$6,BU160)),MAX($BT$13:BT159)+1,0) -> 147 | BU160: 0 | BV160: =ROWS($BV$14:BV160) -> 147 | BW160: =IFERROR(VLOOKUP(ROWS($BW$14:BW160),$BT$14:$BU$5000,2,0),"") -> 0
BT161: =IF(ISNUMBER(SEARCH($C$6,BU161)),MAX($BT$13:BT160)+1,0) -> 148 | BU161: 0 | BV161: =ROWS($BV$14:BV161) -> 148 | BW161: =IFERROR(VLOOKUP(ROWS($BW$14:BW161),$BT$14:$BU$5000,2,0),"") -> 0
BT162: =IF(ISNUMBER(SEARCH($C$6,BU162)),MAX($BT$13:BT161)+1,0) -> 149 | BU162: 0 | BV162: =ROWS($BV$14:BV162) -> 149 | BW162: =IFERROR(VLOOKUP(ROWS($BW$14:BW162),$BT$14:$BU$5000,2,0),"") -> 0
BT163: =IF(ISNUMBER(SEARCH($C$6,BU163)),MAX($BT$13:BT162)+1,0) -> 150 | BU163: 0 | BV163: =ROWS($BV$14:BV163) -> 150 | BW163: =IFERROR(VLOOKUP(ROWS($BW$14:BW163),$BT$14:$BU$5000,2,0),"") -> 0
BT164: =IF(ISNUMBER(SEARCH($C$6,BU164)),MAX($BT$13:BT163)+1,0) -> 151 | BU164: 0 | BV164: =ROWS($BV$14:BV164) -> 151 | BW164: =IFERROR(VLOOKUP(ROWS($BW$14:BW164),$BT$14:$BU$5000,2,0),"") -> 0
BT165: =IF(ISNUMBER(SEARCH($C$6,BU165)),MAX($BT$13:BT164)+1,0) -> 152 | BU165: 0 | BV165: =ROWS($BV$14:BV165) -> 152 | BW165: =IFERROR(VLOOKUP(ROWS($BW$14:BW165),$BT$14:$BU$5000,2,0),"") -> 0
BT166: =IF(ISNUMBER(SEARCH($C$6,BU166)),MAX($BT$13:BT165)+1,0) -> 153 | BU166: 0 | BV166: =ROWS($BV$14:BV166) -> 153 | BW166: =IFERROR(VLOOKUP(ROWS($BW$14:BW166),$BT$14:$BU$5000,2,0),"") -> 0
BT167: =IF(ISNUMBER(SEARCH($C$6,BU167)),MAX($BT$13:BT166)+1,0) -> 154 | BU167: 0 | BV167: =ROWS($BV$14:BV167) -> 154 | BW167: =IFERROR(VLOOKUP(ROWS($BW$14:BW167),$BT$14:$BU$5000,2,0),"") -> 0
BT168: =IF(ISNUMBER(SEARCH($C$6,BU168)),MAX($BT$13:BT167)+1,0) -> 155 | BU168: 0 | BV168: =ROWS($BV$14:BV168) -> 155 | BW168: =IFERROR(VLOOKUP(ROWS($BW$14:BW168),$BT$14:$BU$5000,2,0),"") -> 0
BT169: =IF(ISNUMBER(SEARCH($C$6,BU169)),MAX($BT$13:BT168)+1,0) -> 156 | BU169: 0 | BV169: =ROWS($BV$14:BV169) -> 156 | BW169: =IFERROR(VLOOKUP(ROWS($BW$14:BW169),$BT$14:$BU$5000,2,0),"") -> 0
BT170: =IF(ISNUMBER(SEARCH($C$6,BU170)),MAX($BT$13:BT169)+1,0) -> 157 | BU170: 0 | BV170: =ROWS($BV$14:BV170) -> 157 | BW170: =IFERROR(VLOOKUP(ROWS($BW$14:BW170),$BT$14:$BU$5000,2,0),"") -> 0
BT171: =IF(ISNUMBER(SEARCH($C$6,BU171)),MAX($BT$13:BT170)+1,0) -> 158 | BU171: 0 | BV171: =ROWS($BV$14:BV171) -> 158 | BW171: =IFERROR(VLOOKUP(ROWS($BW$14:BW171),$BT$14:$BU$5000,2,0),"") -> 0
BT172: =IF(ISNUMBER(SEARCH($C$6,BU172)),MAX($BT$13:BT171)+1,0) -> 159 | BU172: 0 | BV172: =ROWS($BV$14:BV172) -> 159 | BW172: =IFERROR(VLOOKUP(ROWS($BW$14:BW172),$BT$14:$BU$5000,2,0),"") -> 0
BT173: =IF(ISNUMBER(SEARCH($C$6,BU173)),MAX($BT$13:BT172)+1,0) -> 160 | BU173: 0 | BV173: =ROWS($BV$14:BV173) -> 160 | BW173: =IFERROR(VLOOKUP(ROWS($BW$14:BW173),$BT$14:$BU$5000,2,0),"") -> 0
BT174: =IF(ISNUMBER(SEARCH($C$6,BU174)),MAX($BT$13:BT173)+1,0) -> 161 | BU174: 0 | BV174: =ROWS($BV$14:BV174) -> 161 | BW174: =IFERROR(VLOOKUP(ROWS($BW$14:BW174),$BT$14:$BU$5000,2,0),"") -> 0
BT175: =IF(ISNUMBER(SEARCH($C$6,BU175)),MAX($BT$13:BT174)+1,0) -> 162 | BU175: 0 | BV175: =ROWS($BV$14:BV175) -> 162 | BW175: =IFERROR(VLOOKUP(ROWS($BW$14:BW175),$BT$14:$BU$5000,2,0),"") -> 0
BT176: =IF(ISNUMBER(SEARCH($C$6,BU176)),MAX($BT$13:BT175)+1,0) -> 163 | BU176: 0 | BV176: =ROWS($BV$14:BV176) -> 163 | BW176: =IFERROR(VLOOKUP(ROWS($BW$14:BW176),$BT$14:$BU$5000,2,0),"") -> 0
BT177: =IF(ISNUMBER(SEARCH($C$6,BU177)),MAX($BT$13:BT176)+1,0) -> 164 | BU177: 0 | BV177: =ROWS($BV$14:BV177) -> 164 | BW177: =IFERROR(VLOOKUP(ROWS($BW$14:BW177),$BT$14:$BU$5000,2,0),"") -> 0
BT178: =IF(ISNUMBER(SEARCH($C$6,BU178)),MAX($BT$13:BT177)+1,0) -> 165 | BU178: 0 | BV178: =ROWS($BV$14:BV178) -> 165 | BW178: =IFERROR(VLOOKUP(ROWS($BW$14:BW178),$BT$14:$BU$5000,2,0),"") -> 0
BT179: =IF(ISNUMBER(SEARCH($C$6,BU179)),MAX($BT$13:BT178)+1,0) -> 166 | BU179: 0 | BV179: =ROWS($BV$14:BV179) -> 166 | BW179: =IFERROR(VLOOKUP(ROWS($BW$14:BW179),$BT$14:$BU$5000,2,0),"") -> 0
BT180: =IF(ISNUMBER(SEARCH($C$6,BU180)),MAX($BT$13:BT179)+1,0) -> 167 | BU180: 0 | BV180: =ROWS($BV$14:BV180) -> 167 | BW180: =IFERROR(VLOOKUP(ROWS($BW$14:BW180),$BT$14:$BU$5000,2,0),"") -> 0
BT181: =IF(ISNUMBER(SEARCH($C$6,BU181)),MAX($BT$13:BT180)+1,0) -> 168 | BU181: 0 | BV181: =ROWS($BV$14:BV181) -> 168 | BW181: =IFERROR(VLOOKUP(ROWS($BW$14:BW181),$BT$14:$BU$5000,2,0),"") -> 0
BT182: =IF(ISNUMBER(SEARCH($C$6,BU182)),MAX($BT$13:BT181)+1,0) -> 169 | BU182: 0 | BV182: =ROWS($BV$14:BV182) -> 169 | BW182: =IFERROR(VLOOKUP(ROWS($BW$14:BW182),$BT$14:$BU$5000,2,0),"") -> 0
BT183: =IF(ISNUMBER(SEARCH($C$6,BU183)),MAX($BT$13:BT182)+1,0) -> 170 | BU183: 0 | BV183: =ROWS($BV$14:BV183) -> 170 | BW183: =IFERROR(VLOOKUP(ROWS($BW$14:BW183),$BT$14:$BU$5000,2,0),"") -> 0
BT184: =IF(ISNUMBER(SEARCH($C$6,BU184)),MAX($BT$13:BT183)+1,0) -> 171 | BU184: 0 | BV184: =ROWS($BV$14:BV184) -> 171 | BW184: =IFERROR(VLOOKUP(ROWS($BW$14:BW184),$BT$14:$BU$5000,2,0),"") -> 0
BT185: =IF(ISNUMBER(SEARCH($C$6,BU185)),MAX($BT$13:BT184)+1,0) -> 172 | BU185: 0 | BV185: =ROWS($BV$14:BV185) -> 172 | BW185: =IFERROR(VLOOKUP(ROWS($BW$14:BW185),$BT$14:$BU$5000,2,0),"") -> 0
BT186: =IF(ISNUMBER(SEARCH($C$6,BU186)),MAX($BT$13:BT185)+1,0) -> 173 | BU186: 0 | BV186: =ROWS($BV$14:BV186) -> 173 | BW186: =IFERROR(VLOOKUP(ROWS($BW$14:BW186),$BT$14:$BU$5000,2,0),"") -> 0
BT187: =IF(ISNUMBER(SEARCH($C$6,BU187)),MAX($BT$13:BT186)+1,0) -> 174 | BU187: 0 | BV187: =ROWS($BV$14:BV187) -> 174 | BW187: =IFERROR(VLOOKUP(ROWS($BW$14:BW187),$BT$14:$BU$5000,2,0),"") -> 0
BT188: =IF(ISNUMBER(SEARCH($C$6,BU188)),MAX($BT$13:BT187)+1,0) -> 175 | BU188: 0 | BV188: =ROWS($BV$14:BV188) -> 175 | BW188: =IFERROR(VLOOKUP(ROWS($BW$14:BW188),$BT$14:$BU$5000,2,0),"") -> 0
BT189: =IF(ISNUMBER(SEARCH($C$6,BU189)),MAX($BT$13:BT188)+1,0) -> 176 | BU189: 0 | BV189: =ROWS($BV$14:BV189) -> 176 | BW189: =IFERROR(VLOOKUP(ROWS($BW$14:BW189),$BT$14:$BU$5000,2,0),"") -> 0
BT190: =IF(ISNUMBER(SEARCH($C$6,BU190)),MAX($BT$13:BT189)+1,0) -> 177 | BU190: 0 | BV190: =ROWS($BV$14:BV190) -> 177 | BW190: =IFERROR(VLOOKUP(ROWS($BW$14:BW190),$BT$14:$BU$5000,2,0),"") -> 0
BT191: =IF(ISNUMBER(SEARCH($C$6,BU191)),MAX($BT$13:BT190)+1,0) -> 178 | BU191: 0 | BV191: =ROWS($BV$14:BV191) -> 178 | BW191: =IFERROR(VLOOKUP(ROWS($BW$14:BW191),$BT$14:$BU$5000,2,0),"") -> 0
BT192: =IF(ISNUMBER(SEARCH($C$6,BU192)),MAX($BT$13:BT191)+1,0) -> 179 | BU192: 0 | BV192: =ROWS($BV$14:BV192) -> 179 | BW192: =IFERROR(VLOOKUP(ROWS($BW$14:BW192),$BT$14:$BU$5000,2,0),"") -> 0
BT193: =IF(ISNUMBER(SEARCH($C$6,BU193)),MAX($BT$13:BT192)+1,0) -> 180 | BU193: 0 | BV193: =ROWS($BV$14:BV193) -> 180 | BW193: =IFERROR(VLOOKUP(ROWS($BW$14:BW193),$BT$14:$BU$5000,2,0),"") -> 0
BT194: =IF(ISNUMBER(SEARCH($C$6,BU194)),MAX($BT$13:BT193)+1,0) -> 181 | BU194: 0 | BV194: =ROWS($BV$14:BV194) -> 181 | BW194: =IFERROR(VLOOKUP(ROWS($BW$14:BW194),$BT$14:$BU$5000,2,0),"") -> 0
BT195: =IF(ISNUMBER(SEARCH($C$6,BU195)),MAX($BT$13:BT194)+1,0) -> 182 | BU195: 0 | BV195: =ROWS($BV$14:BV195) -> 182 | BW195: =IFERROR(VLOOKUP(ROWS($BW$14:BW195),$BT$14:$BU$5000,2,0),"") -> 0
BT196: =IF(ISNUMBER(SEARCH($C$6,BU196)),MAX($BT$13:BT195)+1,0) -> 183 | BU196: 0 | BV196: =ROWS($BV$14:BV196) -> 183 | BW196: =IFERROR(VLOOKUP(ROWS($BW$14:BW196),$BT$14:$BU$5000,2,0),"") -> 0
BT197: =IF(ISNUMBER(SEARCH($C$6,BU197)),MAX($BT$13:BT196)+1,0) -> 184 | BU197: 0 | BV197: =ROWS($BV$14:BV197) -> 184 | BW197: =IFERROR(VLOOKUP(ROWS($BW$14:BW197),$BT$14:$BU$5000,2,0),"") -> 0
BT198: =IF(ISNUMBER(SEARCH($C$6,BU198)),MAX($BT$13:BT197)+1,0) -> 185 | BU198: 0 | BV198: =ROWS($BV$14:BV198) -> 185 | BW198: =IFERROR(VLOOKUP(ROWS($BW$14:BW198),$BT$14:$BU$5000,2,0),"") -> 0
BT199: =IF(ISNUMBER(SEARCH($C$6,BU199)),MAX($BT$13:BT198)+1,0) -> 186 | BU199: 0 | BV199: =ROWS($BV$14:BV199) -> 186 | BW199: =IFERROR(VLOOKUP(ROWS($BW$14:BW199),$BT$14:$BU$5000,2,0),"") -> 0
BT200: =IF(ISNUMBER(SEARCH($C$6,BU200)),MAX($BT$13:BT199)+1,0) -> 187 | BU200: 0 | BV200: =ROWS($BV$14:BV200) -> 187 | BW200: =IFERROR(VLOOKUP(ROWS($BW$14:BW200),$BT$14:$BU$5000,2,0),"") -> 0
BT201: =IF(ISNUMBER(SEARCH($C$6,BU201)),MAX($BT$13:BT200)+1,0) -> 188 | BU201: 0 | BV201: =ROWS($BV$14:BV201) -> 188 | BW201: =IFERROR(VLOOKUP(ROWS($BW$14:BW201),$BT$14:$BU$5000,2,0),"") -> 0
BT202: =IF(ISNUMBER(SEARCH($C$6,BU202)),MAX($BT$13:BT201)+1,0) -> 189 | BU202: 0 | BV202: =ROWS($BV$14:BV202) -> 189 | BW202: =IFERROR(VLOOKUP(ROWS($BW$14:BW202),$BT$14:$BU$5000,2,0),"") -> 0
BT203: =IF(ISNUMBER(SEARCH($C$6,BU203)),MAX($BT$13:BT202)+1,0) -> 190 | BU203: 0 | BV203: =ROWS($BV$14:BV203) -> 190 | BW203: =IFERROR(VLOOKUP(ROWS($BW$14:BW203),$BT$14:$BU$5000,2,0),"") -> 0
... 922 more rows

Sheet Error Messages
B1: ="IDEA LEA Personnel Data for School Year "&'Special Ed Teachers (FS070)'!E11&CHAR(10)&" "&'Select LEA'!C6 -> IDEA LEA Personnel Data for School Year | O1: End of worksheet | P1: End of worksheet
U2: =IFERROR(INDEX('Data Summary'!#REF!, SMALL(IF($D$2='Data Summary'!K33:K37, ROW('Data Summary'!K33:K37)-MIN(ROW('Data Summary'!K33:K37))+1, ""), ROW(B1))),"") -> 
G4: Triggered edit checks
G5: Data file | K5: Count | U5: =IFERROR(INDEX(Dashboard!$T$16:$T$20, SMALL(IF($U$7=Dashboard!$S$16:$S$20, ROW(Dashboard!$S$16:$S$20)-MIN(ROW(Dashboard!$S$16:$S$20))+1, ""), ROW(A1))),"")
G6: FS070 — Special Education Teachers (FTE) | K6: =VALUE('Data Summary'!H5) -> 0
G7: FS099 — Special Education Related Services Personnel | K7: =VALUE('Data Summary'!H6) -> 0
G8: FS112 — Special Education Paraprofessionals | K8: =VALUE('Data Summary'!H7) -> 0 | V8: 1
G9: Total | K9: =SUM(K6:K8) -> 0 | T9: =IFERROR(INDEX('Data Summary'!$J$11:$J$37, SMALL(IF($V$8='Data Summary'!$K$11:$K$37, ROW('Data Summary'!$K$11:$K$37)-MIN(ROW('Data Summary'!$K$11:$K$37))+1, ""), ROW(B1))),"") ->  | U9: =IFERROR(INDEX('Data Summary'!$O$11:$O$37, SMALL(IF($V$8='Data Summary'!$K$11:$K$37, ROW('Data Summary'!$K$11:$K$37)-MIN(ROW('Data Summary'!$K$11:$K$37))+1, ""), ROW(B1))),"") ->  | V9: =IFERROR(INDEX('Data Summary'!$L$11:$L$37, SMALL(IF($V$8='Data Summary'!$K$11:$K$37, ROW('Data Summary'!$K$11:$K$37)-MIN(ROW('Data Summary'!$K$11:$K$37))+1, ""), ROW(B1))),"") ->  | W9: =IFERROR(INDEX('Data Summary'!$M$11:$M$37, SMALL(IF($V$8='Data Summary'!$K$11:$K$37, ROW('Data Summary'!$K$11:$K$37)-MIN(ROW('Data Summary'!$K$11:$K$37))+1, ""), ROW(B1))),"") ->  | X9: =IF(V9="No Data",1,0) -> 0
T10: =IFERROR(INDEX('Data Summary'!$J$11:$J$37, SMALL(IF($V$8='Data Summary'!$K$11:$K$37, ROW('Data Summary'!$K$11:$K$37)-MIN(ROW('Data Summary'!$K$11:$K$37))+1, ""), ROW(B2))),"") ->  | U10: =IFERROR(INDEX('Data Summary'!$O$11:$O$37, SMALL(IF($V$8='Data Summary'!$K$11:$K$37, ROW('Data Summary'!$K$11:$K$37)-MIN(ROW('Data Summary'!$K$11:$K$37))+1, ""), ROW(B2))),"") ->  | V10: =IFERROR(INDEX('Data Summary'!$L$11:$L$37, SMALL(IF($V$8='Data Summary'!$K$11:$K$37, ROW('Data Summary'!$K$11:$K$37)-MIN(ROW('Data Summary'!$K$11:$K$37))+1, ""), ROW(B2))),"") ->  | W10: =IFERROR(INDEX('Data Summary'!$M$11:$M$37, SMALL(IF($V$8='Data Summary'!$K$11:$K$37, ROW('Data Summary'!$K$11:$K$37)-MIN(ROW('Data Summary'!$K$11:$K$37))+1, ""), ROW(B2))),"") ->  | X10: 0
B11: File | C11: Triggered edit checks | N11: FTE | T11: =IFERROR(INDEX('Data Summary'!$J$11:$J$37, SMALL(IF($V$8='Data Summary'!$K$11:$K$37, ROW('Data Summary'!$K$11:$K$37)-MIN(ROW('Data Summary'!$K$11:$K$37))+1, ""), ROW(B3))),"") ->  | U11: =IFERROR(INDEX('Data Summary'!$O$11:$O$37, SMALL(IF($V$8='Data Summary'!$K$11:$K$37, ROW('Data Summary'!$K$11:$K$37)-MIN(ROW('Data Summary'!$K$11:$K$37))+1, ""), ROW(B3))),"") ->  | V11: =IFERROR(INDEX('Data Summary'!$L$11:$L$37, SMALL(IF($V$8='Data Summary'!$K$11:$K$37, ROW('Data Summary'!$K$11:$K$37)-MIN(ROW('Data Summary'!$K$11:$K$37))+1, ""), ROW(B3))),"") ->  | W11: =IFERROR(INDEX('Data Summary'!$M$11:$M$37, SMALL(IF($V$8='Data Summary'!$K$11:$K$37, ROW('Data Summary'!$K$11:$K$37)-MIN(ROW('Data Summary'!$K$11:$K$37))+1, ""), ROW(B3))),"") ->  | X11: 0
B12: =W9 ->  | C12: =IF(X9=1,"No Data",U9) ->  | N12: =IF(T9="","",HYPERLINK(CONCATENATE("#","'Edit Check Details'!",T9),V9)) ->  | T12: =IFERROR(INDEX('Data Summary'!$J$11:$J$37, SMALL(IF($V$8='Data Summary'!$K$11:$K$37, ROW('Data Summary'!$K$11:$K$37)-MIN(ROW('Data Summary'!$K$11:$K$37))+1, ""), ROW(B4))),"") ->  | U12: =IFERROR(INDEX('Data Summary'!$O$11:$O$37, SMALL(IF($V$8='Data Summary'!$K$11:$K$37, ROW('Data Summary'!$K$11:$K$37)-MIN(ROW('Data Summary'!$K$11:$K$37))+1, ""), ROW(B4))),"") ->  | V12: =IFERROR(INDEX('Data Summary'!$L$11:$L$37, SMALL(IF($V$8='Data Summary'!$K$11:$K$37, ROW('Data Summary'!$K$11:$K$37)-MIN(ROW('Data Summary'!$K$11:$K$37))+1, ""), ROW(B4))),"") ->  | W12: =IFERROR(INDEX('Data Summary'!$M$11:$M$37, SMALL(IF($V$8='Data Summary'!$K$11:$K$37, ROW('Data Summary'!$K$11:$K$37)-MIN(ROW('Data Summary'!$K$11:$K$37))+1, ""), ROW(B4))),"") ->  | X12: 0
B13: =W10 ->  | N13: =IF(T10="","",HYPERLINK(CONCATENATE("#","'Edit Check Details'!",T10),V10)) ->  | T13: =IFERROR(INDEX('Data Summary'!$J$11:$J$37, SMALL(IF($V$8='Data Summary'!$K$11:$K$37, ROW('Data Summary'!$K$11:$K$37)-MIN(ROW('Data Summary'!$K$11:$K$37))+1, ""), ROW(B5))),"") ->  | U13: =IFERROR(INDEX('Data Summary'!$O$11:$O$37, SMALL(IF($V$8='Data Summary'!$K$11:$K$37, ROW('Data Summary'!$K$11:$K$37)-MIN(ROW('Data Summary'!$K$11:$K$37))+1, ""), ROW(B5))),"") ->  | V13: =IFERROR(INDEX('Data Summary'!$L$11:$L$37, SMALL(IF($V$8='Data Summary'!$K$11:$K$37, ROW('Data Summary'!$K$11:$K$37)-MIN(ROW('Data Summary'!$K$11:$K$37))+1, ""), ROW(B5))),"") ->  | W13: =IFERROR(INDEX('Data Summary'!$M$11:$M$37, SMALL(IF($V$8='Data Summary'!$K$11:$K$37, ROW('Data Summary'!$K$11:$K$37)-MIN(ROW('Data Summary'!$K$11:$K$37))+1, ""), ROW(B5))),"") ->  | X13: 0 | AE13: File record number | AF13: State code | AG13: State agency number | AH13: LEA identifier (state) | AI13: Filler | AJ13: Table name | AK13: Filler | AL13: Qualification status (teachers) | AM13: Filler | AN13: Age group | AO13: Total indicator | AP13: Explanation | AQ13: Teacher FTE | AS13: File record number | AT13: State code | AU13: State agency number | AV13: LEA identifier (state) | AW13: Filler | AX13: Table name | AY13: Staff category (special education related service) | AZ13: Certification status | BA13: Filler | BB13: Total indicator | BC13: Explanation | BD13: Staff FTE | BF13: File record number | BG13: State code | BH13: State agency number | BI13: LEA identifier (state) | BJ13: Filler | BK13: Table name | BL13: Filler | BM13: Age group | BN13: Qualification status | BO13: Filler | BP13: Total indicator | BQ13: Explanation | BR13: Staff FTE
B14: =W11 ->  | T14: =IFERROR(INDEX('Data Summary'!$J$11:$J$37, SMALL(IF($V$8='Data Summary'!$K$11:$K$37, ROW('Data Summary'!$K$11:$K$37)-MIN(ROW('Data Summary'!$K$11:$K$37))+1, ""), ROW(B6))),"") ->  | U14: =IFERROR(INDEX('Data Summary'!$O$11:$O$37, SMALL(IF($V$8='Data Summary'!$K$11:$K$37, ROW('Data Summary'!$K$11:$K$37)-MIN(ROW('Data Summary'!$K$11:$K$37))+1, ""), ROW(B6))),"") ->  | V14: =IFERROR(INDEX('Data Summary'!$L$11:$L$37, SMALL(IF($V$8='Data Summary'!$K$11:$K$37, ROW('Data Summary'!$K$11:$K$37)-MIN(ROW('Data Summary'!$K$11:$K$37))+1, ""), ROW(B6))),"") ->  | W14: =IFERROR(INDEX('Data Summary'!$M$11:$M$37, SMALL(IF($V$8='Data Summary'!$K$11:$K$37, ROW('Data Summary'!$K$11:$K$37)-MIN(ROW('Data Summary'!$K$11:$K$37))+1, ""), ROW(B6))),"") ->  | X14: 0 | AE14: 5 | AF14: 98 | AG14: 01 | AH14: 25 | AJ14: TEACHSPED | AL14: SPEDTCHFULCRT | AN14: 3TO5 | AO14: N | AQ14: 0 | AS14: 146 | AT14: 98 | AU14: 01 | AV14: 25 | AX14: SPEDUPERSNL | AY14: OCCTHERAP | AZ14: FC | BB14: N | BD14: 0.1 | BF14: 31 | BG14: 98 | BH14: 01 | BI14: 25 | BK14: SPEDPARAPROF | BM14: 3TO5 | BN14: Q | BP14: N | BR14: 3
B15: =W12 ->  | C15: =IF(X12=1,"No Data",U12) ->  | T15: =IFERROR(INDEX('Data Summary'!$J$11:$J$37, SMALL(IF($V$8='Data Summary'!$K$11:$K$37, ROW('Data Summary'!$K$11:$K$37)-MIN(ROW('Data Summary'!$K$11:$K$37))+1, ""), ROW(B7))),"") ->  | U15: =IFERROR(INDEX('Data Summary'!$O$11:$O$37, SMALL(IF($V$8='Data Summary'!$K$11:$K$37, ROW('Data Summary'!$K$11:$K$37)-MIN(ROW('Data Summary'!$K$11:$K$37))+1, ""), ROW(B7))),"") ->  | V15: =IFERROR(INDEX('Data Summary'!$L$11:$L$37, SMALL(IF($V$8='Data Summary'!$K$11:$K$37, ROW('Data Summary'!$K$11:$K$37)-MIN(ROW('Data Summary'!$K$11:$K$37))+1, ""), ROW(B7))),"") ->  | W15: =IFERROR(INDEX('Data Summary'!$M$11:$M$37, SMALL(IF($V$8='Data Summary'!$K$11:$K$37, ROW('Data Summary'!$K$11:$K$37)-MIN(ROW('Data Summary'!$K$11:$K$37))+1, ""), ROW(B7))),"") ->  | X15: 0 | AE15: 122 | AF15: 98 | AG15: 01 | AH15: 25 | AJ15: TEACHSPED | AL15: SPEDTCHFULCRT | AN15: 6TO21 | AO15: N | AQ15: 15 | AS15: 302 | AT15: 98 | AU15: 01 | AV15: 25 | AX15: SPEDUPERSNL | AY15: PHYSTHERAP | AZ15: FC | BB15: N | BD15: 0.05 | BF15: 147 | BG15: 98 | BH15: 01 | BI15: 25 | BK15: SPEDPARAPROF | BM15: 6TO21 | BN15: Q | BP15: N | BR15: 0
B16: =W13 ->  | C16: =IF(X13=1,"No Data",U13) ->  | T16: =IFERROR(INDEX('Data Summary'!$J$11:$J$37, SMALL(IF($V$8='Data Summary'!$K$11:$K$37, ROW('Data Summary'!$K$11:$K$37)-MIN(ROW('Data Summary'!$K$11:$K$37))+1, ""), ROW(B8))),"") ->  | U16: =IFERROR(INDEX('Data Summary'!$O$11:$O$37, SMALL(IF($V$8='Data Summary'!$K$11:$K$37, ROW('Data Summary'!$K$11:$K$37)-MIN(ROW('Data Summary'!$K$11:$K$37))+1, ""), ROW(B8))),"") ->  | V16: =IFERROR(INDEX('Data Summary'!$L$11:$L$37, SMALL(IF($V$8='Data Summary'!$K$11:$K$37, ROW('Data Summary'!$K$11:$K$37)-MIN(ROW('Data Summary'!$K$11:$K$37))+1, ""), ROW(B8))),"") ->  | W16: =IFERROR(INDEX('Data Summary'!$M$11:$M$37, SMALL(IF($V$8='Data Summary'!$K$11:$K$37, ROW('Data Summary'!$K$11:$K$37)-MIN(ROW('Data Summary'!$K$11:$K$37))+1, ""), ROW(B8))),"") ->  | X16: 0 | AE16: 324 | AF16: 98 | AG16: 01 | AH16: 25 | AJ16: TEACHSPED | AL16: SPEDTCHFULCRT | AO16: Y | AQ16: 17 | AS16: 416 | AT16: 98 | AU16: 01 | AV16: 25 | AX16: SPEDUPERSNL | AY16: PSYCH | AZ16: FC | BB16: N | BD16: 1 | BF16: 289 | BG16: 98 | BH16: 01 | BI16: 25 | BK16: SPEDPARAPROF | BM16: 3TO5 | BP16: Y | BR16: 3
T17: =IFERROR(INDEX('Data Summary'!$J$11:$J$37, SMALL(IF($V$8='Data Summary'!$K$11:$K$37, ROW('Data Summary'!$K$11:$K$37)-MIN(ROW('Data Summary'!$K$11:$K$37))+1, ""), ROW(B9))),"") ->  | U17: =IFERROR(INDEX('Data Summary'!$O$11:$O$37, SMALL(IF($V$8='Data Summary'!$K$11:$K$37, ROW('Data Summary'!$K$11:$K$37)-MIN(ROW('Data Summary'!$K$11:$K$37))+1, ""), ROW(B9))),"") ->  | V17: =IFERROR(INDEX('Data Summary'!$L$11:$L$37, SMALL(IF($V$8='Data Summary'!$K$11:$K$37, ROW('Data Summary'!$K$11:$K$37)-MIN(ROW('Data Summary'!$K$11:$K$37))+1, ""), ROW(B9))),"") ->  | W17: =IFERROR(INDEX('Data Summary'!$M$11:$M$37, SMALL(IF($V$8='Data Summary'!$K$11:$K$37, ROW('Data Summary'!$K$11:$K$37)-MIN(ROW('Data Summary'!$K$11:$K$37))+1, ""), ROW(B9))),"") ->  | X17: 0 | AE17: 512 | AF17: 98 | AG17: 01 | AH17: 25 | AJ17: TEACHSPED | AN17: 3TO5 | AO17: Y | AQ17: 2 | AS17: 564 | AT17: 98 | AU17: 01 | AV17: 25 | AX17: SPEDUPERSNL | AY17: SPEECHPATH | AZ17: FC | BB17: N | BD17: 2.5 | BF17: 290 | BG17: 98 | BH17: 01 | BI17: 25 | BK17: SPEDPARAPROF | BM17: 6TO21 | BP17: Y | BR17: 20
T18: =IFERROR(INDEX('Data Summary'!$J$11:$J$37, SMALL(IF($V$8='Data Summary'!$K$11:$K$37, ROW('Data Summary'!$K$11:$K$37)-MIN(ROW('Data Summary'!$K$11:$K$37))+1, ""), ROW(B10))),"") ->  | U18: =IFERROR(INDEX('Data Summary'!$O$11:$O$37, SMALL(IF($V$8='Data Summary'!$K$11:$K$37, ROW('Data Summary'!$K$11:$K$37)-MIN(ROW('Data Summary'!$K$11:$K$37))+1, ""), ROW(B10))),"") ->  | V18: =IFERROR(INDEX('Data Summary'!$L$11:$L$37, SMALL(IF($V$8='Data Summary'!$K$11:$K$37, ROW('Data Summary'!$K$11:$K$37)-MIN(ROW('Data Summary'!$K$11:$K$37))+1, ""), ROW(B10))),"") ->  | W18: =IFERROR(INDEX('Data Summary'!$M$11:$M$37, SMALL(IF($V$8='Data Summary'!$K$11:$K$37, ROW('Data Summary'!$K$11:$K$37)-MIN(ROW('Data Summary'!$K$11:$K$37))+1, ""), ROW(B10))),"") ->  | X18: 0 | AE18: 513 | AF18: 98 | AG18: 01 | AH18: 25 | AJ18: TEACHSPED | AN18: 6TO21 | AO18: Y | AQ18: 15 | AS18: 768 | AT18: 98 | AU18: 01 | AV18: 25 | AX18: SPEDUPERSNL | AY18: OCCTHERAP | BB18: Y | BD18: 0 | BF18: 542 | BG18: 98 | BH18: 01 | BI18: 25 | BK18: SPEDPARAPROF | BN18: Q | BP18: Y | BR18: 23
T19: =IFERROR(INDEX('Data Summary'!$J$11:$J$37, SMALL(IF($V$8='Data Summary'!$K$11:$K$37, ROW('Data Summary'!$K$11:$K$37)-MIN(ROW('Data Summary'!$K$11:$K$37))+1, ""), ROW(B11))),"") ->  | U19: =IFERROR(INDEX('Data Summary'!$O$11:$O$37, SMALL(IF($V$8='Data Summary'!$K$11:$K$37, ROW('Data Summary'!$K$11:$K$37)-MIN(ROW('Data Summary'!$K$11:$K$37))+1, ""), ROW(B11))),"") ->  | V19: =IFERROR(INDEX('Data Summary'!$L$11:$L$37, SMALL(IF($V$8='Data Summary'!$K$11:$K$37, ROW('Data Summary'!$K$11:$K$37)-MIN(ROW('Data Summary'!$K$11:$K$37))+1, ""), ROW(B11))),"") ->  | W19: =IFERROR(INDEX('Data Summary'!$M$11:$M$37, SMALL(IF($V$8='Data Summary'!$K$11:$K$37, ROW('Data Summary'!$K$11:$K$37)-MIN(ROW('Data Summary'!$K$11:$K$37))+1, ""), ROW(B11))),"") ->  | X19: 0 | AE19: 766 | AF19: 98 | AG19: 01 | AH19: 25 | AJ19: TEACHSPED | AO19: Y | AQ19: 17 | AS19: 769 | AT19: 98 | AU19: 01 | AV19: 25 | AX19: SPEDUPERSNL | AY19: PHYSTHERAP | BB19: Y | BD19: 0 | BF19: 701 | BG19: 98 | BH19: 01 | BI19: 25 | BK19: SPEDPARAPROF | BP19: Y | BR19: 23
T20: =IFERROR(INDEX('Data Summary'!$J$11:$J$37, SMALL(IF($V$8='Data Summary'!$K$11:$K$37, ROW('Data Summary'!$K$11:$K$37)-MIN(ROW('Data Summary'!$K$11:$K$37))+1, ""), ROW(B12))),"") ->  | U20: =IFERROR(INDEX('Data Summary'!$O$11:$O$37, SMALL(IF($V$8='Data Summary'!$K$11:$K$37, ROW('Data Summary'!$K$11:$K$37)-MIN(ROW('Data Summary'!$K$11:$K$37))+1, ""), ROW(B12))),"") ->  | V20: =IFERROR(INDEX('Data Summary'!$L$11:$L$37, SMALL(IF($V$8='Data Summary'!$K$11:$K$37, ROW('Data Summary'!$K$11:$K$37)-MIN(ROW('Data Summary'!$K$11:$K$37))+1, ""), ROW(B12))),"") ->  | W20: =IFERROR(INDEX('Data Summary'!$M$11:$M$37, SMALL(IF($V$8='Data Summary'!$K$11:$K$37, ROW('Data Summary'!$K$11:$K$37)-MIN(ROW('Data Summary'!$K$11:$K$37))+1, ""), ROW(B12))),"") ->  | X20: 0 | AS20: 770 | AT20: 98 | AU20: 01 | AV20: 25 | AX20: SPEDUPERSNL | AY20: PSYCH | BB20: Y | BD20: 0
T21: =IFERROR(INDEX('Data Summary'!$J$11:$J$37, SMALL(IF($V$8='Data Summary'!$K$11:$K$37, ROW('Data Summary'!$K$11:$K$37)-MIN(ROW('Data Summary'!$K$11:$K$37))+1, ""), ROW(B13))),"") ->  | U21: =IFERROR(INDEX('Data Summary'!$O$11:$O$37, SMALL(IF($V$8='Data Summary'!$K$11:$K$37, ROW('Data Summary'!$K$11:$K$37)-MIN(ROW('Data Summary'!$K$11:$K$37))+1, ""), ROW(B13))),"") ->  | V21: =IFERROR(INDEX('Data Summary'!$L$11:$L$37, SMALL(IF($V$8='Data Summary'!$K$11:$K$37, ROW('Data Summary'!$K$11:$K$37)-MIN(ROW('Data Summary'!$K$11:$K$37))+1, ""), ROW(B13))),"") ->  | W21: =IFERROR(INDEX('Data Summary'!$M$11:$M$37, SMALL(IF($V$8='Data Summary'!$K$11:$K$37, ROW('Data Summary'!$K$11:$K$37)-MIN(ROW('Data Summary'!$K$11:$K$37))+1, ""), ROW(B13))),"") ->  | X21: 0 | AS21: 771 | AT21: 98 | AU21: 01 | AV21: 25 | AX21: SPEDUPERSNL | AY21: SPEECHPATH | BB21: Y | BD21: 0
T22: =IFERROR(INDEX('Data Summary'!$J$11:$J$37, SMALL(IF($V$8='Data Summary'!$K$11:$K$37, ROW('Data Summary'!$K$11:$K$37)-MIN(ROW('Data Summary'!$K$11:$K$37))+1, ""), ROW(B14))),"") ->  | U22: =IFERROR(INDEX('Data Summary'!$O$11:$O$37, SMALL(IF($V$8='Data Summary'!$K$11:$K$37, ROW('Data Summary'!$K$11:$K$37)-MIN(ROW('Data Summary'!$K$11:$K$37))+1, ""), ROW(B14))),"") ->  | V22: =IFERROR(INDEX('Data Summary'!$L$11:$L$37, SMALL(IF($V$8='Data Summary'!$K$11:$K$37, ROW('Data Summary'!$K$11:$K$37)-MIN(ROW('Data Summary'!$K$11:$K$37))+1, ""), ROW(B14))),"") ->  | W22: =IFERROR(INDEX('Data Summary'!$M$11:$M$37, SMALL(IF($V$8='Data Summary'!$K$11:$K$37, ROW('Data Summary'!$K$11:$K$37)-MIN(ROW('Data Summary'!$K$11:$K$37))+1, ""), ROW(B14))),"") ->  | X22: 0
T23: =IFERROR(INDEX('Data Summary'!$J$11:$J$37, SMALL(IF($V$8='Data Summary'!$K$11:$K$37, ROW('Data Summary'!$K$11:$K$37)-MIN(ROW('Data Summary'!$K$11:$K$37))+1, ""), ROW(B15))),"") ->  | U23: =IFERROR(INDEX('Data Summary'!$O$11:$O$37, SMALL(IF($V$8='Data Summary'!$K$11:$K$37, ROW('Data Summary'!$K$11:$K$37)-MIN(ROW('Data Summary'!$K$11:$K$37))+1, ""), ROW(B15))),"") ->  | V23: =IFERROR(INDEX('Data Summary'!$L$11:$L$37, SMALL(IF($V$8='Data Summary'!$K$11:$K$37, ROW('Data Summary'!$K$11:$K$37)-MIN(ROW('Data Summary'!$K$11:$K$37))+1, ""), ROW(B15))),"") ->  | W23: =IFERROR(INDEX('Data Summary'!$M$11:$M$37, SMALL(IF($V$8='Data Summary'!$K$11:$K$37, ROW('Data Summary'!$K$11:$K$37)-MIN(ROW('Data Summary'!$K$11:$K$37))+1, ""), ROW(B15))),"") ->  | X23: 0
T24: =IFERROR(INDEX('Data Summary'!$J$11:$J$37, SMALL(IF($V$8='Data Summary'!$K$11:$K$37, ROW('Data Summary'!$K$11:$K$37)-MIN(ROW('Data Summary'!$K$11:$K$37))+1, ""), ROW(B16))),"") ->  | U24: =IFERROR(INDEX('Data Summary'!$O$11:$O$37, SMALL(IF($V$8='Data Summary'!$K$11:$K$37, ROW('Data Summary'!$K$11:$K$37)-MIN(ROW('Data Summary'!$K$11:$K$37))+1, ""), ROW(B16))),"") ->  | V24: =IFERROR(INDEX('Data Summary'!$L$11:$L$37, SMALL(IF($V$8='Data Summary'!$K$11:$K$37, ROW('Data Summary'!$K$11:$K$37)-MIN(ROW('Data Summary'!$K$11:$K$37))+1, ""), ROW(B16))),"") ->  | W24: =IFERROR(INDEX('Data Summary'!$M$11:$M$37, SMALL(IF($V$8='Data Summary'!$K$11:$K$37, ROW('Data Summary'!$K$11:$K$37)-MIN(ROW('Data Summary'!$K$11:$K$37))+1, ""), ROW(B16))),"") ->  | X24: 0
T25: =IFERROR(INDEX('Data Summary'!$J$11:$J$37, SMALL(IF($V$8='Data Summary'!$K$11:$K$37, ROW('Data Summary'!$K$11:$K$37)-MIN(ROW('Data Summary'!$K$11:$K$37))+1, ""), ROW(B17))),"") ->  | U25: =IFERROR(INDEX('Data Summary'!$O$11:$O$37, SMALL(IF($V$8='Data Summary'!$K$11:$K$37, ROW('Data Summary'!$K$11:$K$37)-MIN(ROW('Data Summary'!$K$11:$K$37))+1, ""), ROW(B17))),"") ->  | V25: =IFERROR(INDEX('Data Summary'!$L$11:$L$37, SMALL(IF($V$8='Data Summary'!$K$11:$K$37, ROW('Data Summary'!$K$11:$K$37)-MIN(ROW('Data Summary'!$K$11:$K$37))+1, ""), ROW(B17))),"") ->  | W25: =IFERROR(INDEX('Data Summary'!$M$11:$M$37, SMALL(IF($V$8='Data Summary'!$K$11:$K$37, ROW('Data Summary'!$K$11:$K$37)-MIN(ROW('Data Summary'!$K$11:$K$37))+1, ""), ROW(B17))),"") ->  | X25: 0
T26: =IFERROR(INDEX('Data Summary'!$J$11:$J$37, SMALL(IF($V$8='Data Summary'!$K$11:$K$37, ROW('Data Summary'!$K$11:$K$37)-MIN(ROW('Data Summary'!$K$11:$K$37))+1, ""), ROW(B18))),"") ->  | U26: =IFERROR(INDEX('Data Summary'!$O$11:$O$37, SMALL(IF($V$8='Data Summary'!$K$11:$K$37, ROW('Data Summary'!$K$11:$K$37)-MIN(ROW('Data Summary'!$K$11:$K$37))+1, ""), ROW(B18))),"") ->  | V26: =IFERROR(INDEX('Data Summary'!$L$11:$L$37, SMALL(IF($V$8='Data Summary'!$K$11:$K$37, ROW('Data Summary'!$K$11:$K$37)-MIN(ROW('Data Summary'!$K$11:$K$37))+1, ""), ROW(B18))),"") ->  | W26: =IFERROR(INDEX('Data Summary'!$M$11:$M$37, SMALL(IF($V$8='Data Summary'!$K$11:$K$37, ROW('Data Summary'!$K$11:$K$37)-MIN(ROW('Data Summary'!$K$11:$K$37))+1, ""), ROW(B18))),"") ->  | X26: 0
T27: =IFERROR(INDEX('Data Summary'!$J$11:$J$37, SMALL(IF($V$8='Data Summary'!$K$11:$K$37, ROW('Data Summary'!$K$11:$K$37)-MIN(ROW('Data Summary'!$K$11:$K$37))+1, ""), ROW(B19))),"") ->  | U27: =IFERROR(INDEX('Data Summary'!$O$11:$O$37, SMALL(IF($V$8='Data Summary'!$K$11:$K$37, ROW('Data Summary'!$K$11:$K$37)-MIN(ROW('Data Summary'!$K$11:$K$37))+1, ""), ROW(B19))),"") ->  | V27: =IFERROR(INDEX('Data Summary'!$L$11:$L$37, SMALL(IF($V$8='Data Summary'!$K$11:$K$37, ROW('Data Summary'!$K$11:$K$37)-MIN(ROW('Data Summary'!$K$11:$K$37))+1, ""), ROW(B19))),"") ->  | W27: =IFERROR(INDEX('Data Summary'!$M$11:$M$37, SMALL(IF($V$8='Data Summary'!$K$11:$K$37, ROW('Data Summary'!$K$11:$K$37)-MIN(ROW('Data Summary'!$K$11:$K$37))+1, ""), ROW(B19))),"") ->  | X27: 0
T28: =IFERROR(INDEX('Data Summary'!$J$11:$J$37, SMALL(IF($V$8='Data Summary'!$K$11:$K$37, ROW('Data Summary'!$K$11:$K$37)-MIN(ROW('Data Summary'!$K$11:$K$37))+1, ""), ROW(B20))),"") ->  | U28: =IFERROR(INDEX('Data Summary'!$O$11:$O$37, SMALL(IF($V$8='Data Summary'!$K$11:$K$37, ROW('Data Summary'!$K$11:$K$37)-MIN(ROW('Data Summary'!$K$11:$K$37))+1, ""), ROW(B20))),"") ->  | V28: =IFERROR(INDEX('Data Summary'!$L$11:$L$37, SMALL(IF($V$8='Data Summary'!$K$11:$K$37, ROW('Data Summary'!$K$11:$K$37)-MIN(ROW('Data Summary'!$K$11:$K$37))+1, ""), ROW(B20))),"") ->  | W28: =IFERROR(INDEX('Data Summary'!$M$11:$M$37, SMALL(IF($V$8='Data Summary'!$K$11:$K$37, ROW('Data Summary'!$K$11:$K$37)-MIN(ROW('Data Summary'!$K$11:$K$37))+1, ""), ROW(B20))),"") ->  | X28: 0
T29: =IFERROR(INDEX('Data Summary'!$J$11:$J$37, SMALL(IF($V$8='Data Summary'!$K$11:$K$37, ROW('Data Summary'!$K$11:$K$37)-MIN(ROW('Data Summary'!$K$11:$K$37))+1, ""), ROW(B21))),"") ->  | U29: =IFERROR(INDEX('Data Summary'!$O$11:$O$37, SMALL(IF($V$8='Data Summary'!$K$11:$K$37, ROW('Data Summary'!$K$11:$K$37)-MIN(ROW('Data Summary'!$K$11:$K$37))+1, ""), ROW(B21))),"") ->  | V29: =IFERROR(INDEX('Data Summary'!$L$11:$L$37, SMALL(IF($V$8='Data Summary'!$K$11:$K$37, ROW('Data Summary'!$K$11:$K$37)-MIN(ROW('Data Summary'!$K$11:$K$37))+1, ""), ROW(B21))),"") ->  | W29: =IFERROR(INDEX('Data Summary'!$M$11:$M$37, SMALL(IF($V$8='Data Summary'!$K$11:$K$37, ROW('Data Summary'!$K$11:$K$37)-MIN(ROW('Data Summary'!$K$11:$K$37))+1, ""), ROW(B21))),"") ->  | X29: 0
T30: =IFERROR(INDEX('Data Summary'!$J$11:$J$37, SMALL(IF($V$8='Data Summary'!$K$11:$K$37, ROW('Data Summary'!$K$11:$K$37)-MIN(ROW('Data Summary'!$K$11:$K$37))+1, ""), ROW(B22))),"") ->  | U30: =IFERROR(INDEX('Data Summary'!$O$11:$O$37, SMALL(IF($V$8='Data Summary'!$K$11:$K$37, ROW('Data Summary'!$K$11:$K$37)-MIN(ROW('Data Summary'!$K$11:$K$37))+1, ""), ROW(B22))),"") ->  | V30: =IFERROR(INDEX('Data Summary'!$L$11:$L$37, SMALL(IF($V$8='Data Summary'!$K$11:$K$37, ROW('Data Summary'!$K$11:$K$37)-MIN(ROW('Data Summary'!$K$11:$K$37))+1, ""), ROW(B22))),"") ->  | W30: =IFERROR(INDEX('Data Summary'!$M$11:$M$37, SMALL(IF($V$8='Data Summary'!$K$11:$K$37, ROW('Data Summary'!$K$11:$K$37)-MIN(ROW('Data Summary'!$K$11:$K$37))+1, ""), ROW(B22))),"") ->  | X30: 0
T31: =IFERROR(INDEX('Data Summary'!$J$11:$J$37, SMALL(IF($V$8='Data Summary'!$K$11:$K$37, ROW('Data Summary'!$K$11:$K$37)-MIN(ROW('Data Summary'!$K$11:$K$37))+1, ""), ROW(B23))),"") ->  | U31: =IFERROR(INDEX('Data Summary'!$O$11:$O$37, SMALL(IF($V$8='Data Summary'!$K$11:$K$37, ROW('Data Summary'!$K$11:$K$37)-MIN(ROW('Data Summary'!$K$11:$K$37))+1, ""), ROW(B23))),"") ->  | V31: =IFERROR(INDEX('Data Summary'!$L$11:$L$37, SMALL(IF($V$8='Data Summary'!$K$11:$K$37, ROW('Data Summary'!$K$11:$K$37)-MIN(ROW('Data Summary'!$K$11:$K$37))+1, ""), ROW(B23))),"") ->  | W31: =IFERROR(INDEX('Data Summary'!$M$11:$M$37, SMALL(IF($V$8='Data Summary'!$K$11:$K$37, ROW('Data Summary'!$K$11:$K$37)-MIN(ROW('Data Summary'!$K$11:$K$37))+1, ""), ROW(B23))),"") ->  | X31: 0
T32: =IFERROR(INDEX('Data Summary'!$J$11:$J$37, SMALL(IF($V$8='Data Summary'!$K$11:$K$37, ROW('Data Summary'!$K$11:$K$37)-MIN(ROW('Data Summary'!$K$11:$K$37))+1, ""), ROW(B24))),"") ->  | U32: =IFERROR(INDEX('Data Summary'!$O$11:$O$37, SMALL(IF($V$8='Data Summary'!$K$11:$K$37, ROW('Data Summary'!$K$11:$K$37)-MIN(ROW('Data Summary'!$K$11:$K$37))+1, ""), ROW(B24))),"") ->  | V32: =IFERROR(INDEX('Data Summary'!$L$11:$L$37, SMALL(IF($V$8='Data Summary'!$K$11:$K$37, ROW('Data Summary'!$K$11:$K$37)-MIN(ROW('Data Summary'!$K$11:$K$37))+1, ""), ROW(B24))),"") ->  | W32: =IFERROR(INDEX('Data Summary'!$M$11:$M$37, SMALL(IF($V$8='Data Summary'!$K$11:$K$37, ROW('Data Summary'!$K$11:$K$37)-MIN(ROW('Data Summary'!$K$11:$K$37))+1, ""), ROW(B24))),"") ->  | X32: 0
T33: =IFERROR(INDEX('Data Summary'!$J$11:$J$37, SMALL(IF($V$8='Data Summary'!$K$11:$K$37, ROW('Data Summary'!$K$11:$K$37)-MIN(ROW('Data Summary'!$K$11:$K$37))+1, ""), ROW(B25))),"") ->  | U33: =IFERROR(INDEX('Data Summary'!$O$11:$O$37, SMALL(IF($V$8='Data Summary'!$K$11:$K$37, ROW('Data Summary'!$K$11:$K$37)-MIN(ROW('Data Summary'!$K$11:$K$37))+1, ""), ROW(B25))),"") ->  | V33: =IFERROR(INDEX('Data Summary'!$L$11:$L$37, SMALL(IF($V$8='Data Summary'!$K$11:$K$37, ROW('Data Summary'!$K$11:$K$37)-MIN(ROW('Data Summary'!$K$11:$K$37))+1, ""), ROW(B25))),"") ->  | W33: =IFERROR(INDEX('Data Summary'!$M$11:$M$37, SMALL(IF($V$8='Data Summary'!$K$11:$K$37, ROW('Data Summary'!$K$11:$K$37)-MIN(ROW('Data Summary'!$K$11:$K$37))+1, ""), ROW(B25))),"") ->  | X33: 0
T34: =IFERROR(INDEX('Data Summary'!$J$11:$J$37, SMALL(IF($V$8='Data Summary'!$K$11:$K$37, ROW('Data Summary'!$K$11:$K$37)-MIN(ROW('Data Summary'!$K$11:$K$37))+1, ""), ROW(B26))),"") ->  | U34: =IFERROR(INDEX('Data Summary'!$O$11:$O$37, SMALL(IF($V$8='Data Summary'!$K$11:$K$37, ROW('Data Summary'!$K$11:$K$37)-MIN(ROW('Data Summary'!$K$11:$K$37))+1, ""), ROW(B26))),"") ->  | V34: =IFERROR(INDEX('Data Summary'!$L$11:$L$37, SMALL(IF($V$8='Data Summary'!$K$11:$K$37, ROW('Data Summary'!$K$11:$K$37)-MIN(ROW('Data Summary'!$K$11:$K$37))+1, ""), ROW(B26))),"") ->  | W34: =IFERROR(INDEX('Data Summary'!$M$11:$M$37, SMALL(IF($V$8='Data Summary'!$K$11:$K$37, ROW('Data Summary'!$K$11:$K$37)-MIN(ROW('Data Summary'!$K$11:$K$37))+1, ""), ROW(B26))),"") ->  | X34: 0
T35: =IFERROR(INDEX('Data Summary'!$J$11:$J$37, SMALL(IF($V$8='Data Summary'!$K$11:$K$37, ROW('Data Summary'!$K$11:$K$37)-MIN(ROW('Data Summary'!$K$11:$K$37))+1, ""), ROW(B27))),"") ->  | U35: =IFERROR(INDEX('Data Summary'!$O$11:$O$37, SMALL(IF($V$8='Data Summary'!$K$11:$K$37, ROW('Data Summary'!$K$11:$K$37)-MIN(ROW('Data Summary'!$K$11:$K$37))+1, ""), ROW(B27))),"") ->  | V35: =IFERROR(INDEX('Data Summary'!$L$11:$L$37, SMALL(IF($V$8='Data Summary'!$K$11:$K$37, ROW('Data Summary'!$K$11:$K$37)-MIN(ROW('Data Summary'!$K$11:$K$37))+1, ""), ROW(B27))),"") ->  | W35: =IFERROR(INDEX('Data Summary'!$M$11:$M$37, SMALL(IF($V$8='Data Summary'!$K$11:$K$37, ROW('Data Summary'!$K$11:$K$37)-MIN(ROW('Data Summary'!$K$11:$K$37))+1, ""), ROW(B27))),"") ->  | X35: 0
T36: =IFERROR(INDEX('Data Summary'!$J$11:$J$37, SMALL(IF($V$8='Data Summary'!$K$11:$K$37, ROW('Data Summary'!$K$11:$K$37)-MIN(ROW('Data Summary'!$K$11:$K$37))+1, ""), ROW(B28))),"") ->  | U36: =IFERROR(INDEX('Data Summary'!$O$11:$O$37, SMALL(IF($V$8='Data Summary'!$K$11:$K$37, ROW('Data Summary'!$K$11:$K$37)-MIN(ROW('Data Summary'!$K$11:$K$37))+1, ""), ROW(B28))),"") ->  | V36: =IFERROR(INDEX('Data Summary'!$L$11:$L$37, SMALL(IF($V$8='Data Summary'!$K$11:$K$37, ROW('Data Summary'!$K$11:$K$37)-MIN(ROW('Data Summary'!$K$11:$K$37))+1, ""), ROW(B28))),"") ->  | W36: =IFERROR(INDEX('Data Summary'!$M$11:$M$37, SMALL(IF($V$8='Data Summary'!$K$11:$K$37, ROW('Data Summary'!$K$11:$K$37)-MIN(ROW('Data Summary'!$K$11:$K$37))+1, ""), ROW(B28))),"") ->  | X36: 0
B45: End of worksheet

Sheet Data Summary
B1: ="IDEA LEA Personnel Data for School Year "&'Special Ed Teachers (FS070)'!E11&CHAR(10)&" "&'Select LEA'!C6 -> IDEA LEA Personnel Data for School Year | I1: End of worksheet
E3: Triggered edit checks
E4: Data file | H4: Count
E5: FS070 — Special Education Teachers (FTE) | H5: =SUM(K11:K16) -> 0
E6: FS099 — Special Education Related Services Personnel | H6: =SUM(K19:K29) -> 0
E7: FS112 — Special Education Paraprofessionals | H7: =SUM(K33:K38) -> 0
E8: Total | H8: =SUM(H5:H7) -> 0 | K8: Search Value: | L8: 1
B10: FS070 — Special Education Teachers (FTE) | J10: Link | K10: Triggered? | L10: FTE | M10: File | O10: Error Messages | Z10: FS070 — Special Education Teachers (FTE)
B11: File | C11: Special education teachers | H11: FTE | J11: E12 | K11: =IF(H14="",0,IF(SUM('Edit Check Details'!C12:D12)<>'Edit Check Details'!E12,1,0)) -> 0 | L11: =H14 ->  | M11: =B12 -> FS070 | O11: =IF(K11=1,"Fully Certified + Not Fully Certified Special Education Teachers for Ages 3-5PK ≠ Special Education Teachers for Ages 3-5PK","") ->  | Z11: File | AA11: Special Education Teachers | AF11: FTE
B12: FS070 | C12: Fully certified special education teachers for ages 3-21 | H12: =IF(ISERROR('Edit Check Details'!C14),"",'Edit Check Details'!C14) ->  | J12: E13 | K12: =IF(H13="",0,IF(OR(H13="No Data",SUM('Edit Check Details'!C13:D13)<>'Edit Check Details'!E13),1,0)) -> 0 | L12: =H15 ->  | M12: =B13 -> FS070 | O12: =IF(K12=1,"Fully Certified + Not Fully Certified Special Education Teachers for Ages 5K-21 ≠ Special Education Teachers for Ages 5K-21","") -> 
B13: FS070 | C13: Not fully certified special education teachers for ages 3-21 | H13: =IF(ISERROR('Edit Check Details'!D14),"",'Edit Check Details'!D14) ->  | J13: C14 | K13: =IF(H12="",0,IF(OR(H12="No Data",SUM('Edit Check Details'!C12:C13)<>'Edit Check Details'!C14),1,0)) -> 0 | L13: =H12 ->  | M13: FS070 | O13: =IF(K13=1,"Fully Certified Special Education Teachers for Ages 3-5PK + Ages 5K-21 ≠ Fully Certified Special Education Teachers for Ages 3-21","") ->  | AE13: File record number | AF13: State code | AG13: State agency number | AH13: LEA identifier (state) | AI13: Filler | AJ13: Table name | AK13: Filler | AL13: Qualification status (teachers) | AM13: Filler | AN13: Age group | AO13: Total indicator | AP13: Explanation | AQ13: Teacher FTE
B14: FS070 | C14: Special education teachers for ages 3 through 5 (preschool) | H14: =IF(ISERROR('Edit Check Details'!E12),"",'Edit Check Details'!E12) ->  | J14: D14 | K14: =IF(H13="",0,IF(OR(H13="No Data",SUM('Edit Check Details'!D12:D13)<>'Edit Check Details'!D14),1,0)) -> 0 | L14: =H15 ->  | M14: FS070 | O14: =IF(K14=1,"Not Fully Certified Special Education Teachers for Ages 3-5PK + Ages 5K-21 ≠ Not Fully Certified Special Education Teachers for Ages 3-21","") -> 
B15: FS070 | C15: Special education teachers for ages 5 in kindergarten through 21 | H15: =IF(ISERROR('Edit Check Details'!E13),"",'Edit Check Details'!E13) ->  | J15: E14 | K15: =IF(H16="",0,IF(OR(H16="No Data",SUM('Edit Check Details'!C14:D14)<>'Edit Check Details'!E14),1,0)) -> 0 | L15: =H16 ->  | M15: FS070 | O15: =IF(K15=1,"Fully Certified Special Education Teachers for Ages 3-21 + Not Fully Certified Qualified Special Education Teachers for Ages 3-21 ≠ Total Special Education Teachers Serving Children with Disabilities Ages 3-21","") -> 
B16: FS070 | C16: Total special education teachers serving children with disabilities ages 3-21 | H16: =IF(ISERROR('Edit Check Details'!E14),"",'Edit Check Details'!E14) ->  | J16: E14 | K16: =IF(H17="",0,IF(OR(H17="No Data",SUM('Edit Check Details'!E12:E13)<>'Edit Check Details'!E14),1,0)) -> 0 | L16: =H16 ->  | M16: =B16 -> FS070 | O16: =IF(K16=1,"Special Education Teachers for Ages 3-5PK + Ages 5K-21 ≠ Total Special Education Teachers Serving Children with Disabilities Ages 3-21","") -> 
B18: FS099 — Special Education Related Services Personnel | O18: Error Messages | Z18: FS099 — Special Education Related Services Personnel
B19: File | C19: Related services personnel | H19: FTE | J19: E18 | K19: =IF(H20="",0,IF(OR(H20="No Data",SUM('Edit Check Details'!C18:D18)<>'Edit Check Details'!E18),1,0)) -> 0 | L19: =H20 ->  | M19: =B20 -> FS099 | O19: =IF(K19=1,"Fully Certified + Not Fully Certified Audiologists ≠ Total Audiologists","") ->  | Z19: File | AA19: Related Services Personnel | AF19: FTE
B20: FS099 | C20: Audiologists | H20: =IF(ISERROR('Edit Check Details'!E18),"No Data",'Edit Check Details'!E18) ->  | J20: E19 | K20: =IF(H21="",0,IF(OR(H21="No Data",SUM('Edit Check Details'!C19:D19)<>'Edit Check Details'!E19),1,0)) -> 0 | M20: FS099 | O20: =IF(K20=1,"Fully Certified + Not Fully Certified Speech-Language Pathologists ≠ Total Speech-Language Pathologists","") -> 
B21: FS099 | C21: Speech-language pathologists | H21: =IF(ISERROR('Edit Check Details'!E19),"No Data",'Edit Check Details'!E19) ->  | J21: E20 | K21: =IF(H22="",0,IF(OR(H22="No Data",SUM('Edit Check Details'!C20:D20)<>'Edit Check Details'!E20),1,0)) -> 0 | M21: FS099 | O21: =IF(K21=1,"Fully Certified + Not Fully Certified Interpreters ≠ Total Interpreters","") -> 
B22: FS099 | C22: Interpreters | H22: =IF(ISERROR('Edit Check Details'!E20),"No Data",'Edit Check Details'!E20) ->  | J22: E21 | K22: =IF(H23="",0,IF(OR(H23="No Data",SUM('Edit Check Details'!C21:D21)<>'Edit Check Details'!E21),1,0)) -> 0 | M22: FS099 | O22: =IF(K22=1,"Fully Certified + Not Fully Certified Psychologists ≠ Total Psychologists","") -> 
B23: FS099 | C23: Psychologists | H23: =IF(ISERROR('Edit Check Details'!E21),"No Data",'Edit Check Details'!E21) ->  | J23: E22 | K23: =IF(H24="",0,IF(OR(H24="No Data",SUM('Edit Check Details'!C22:D22)<>'Edit Check Details'!E22),1,0)) -> 0 | M23: FS099 | O23: =IF(K23=1,"Fully Certified + Not Fully Certified Occupational Therapists ≠ Total Occupational Therapists","") -> 
B24: FS099 | C24: Occupational therapists | H24: =IF(ISERROR('Edit Check Details'!E22),"No Data",'Edit Check Details'!E22) ->  | J24: E23 | K24: =IF(H25="",0,IF(OR(H25="No Data",SUM('Edit Check Details'!C23:D23)<>'Edit Check Details'!E23),1,0)) -> 0 | M24: FS099 | O24: =IF(K24=1,"Fully Certified + Not Fully Certified Physical Therapists ≠ Total Physical Therapists","") -> 
B25: FS099 | C25: Physical therapists | H25: =IF(ISERROR('Edit Check Details'!E23),"No Data",'Edit Check Details'!E23) ->  | J25: E24 | K25: =IF(H26="",0,IF(OR(H26="No Data",SUM('Edit Check Details'!C24:D24)<>'Edit Check Details'!E24),1,0)) -> 0 | M25: FS099 | O25: =IF(K25=1,"Fully Certified + Not Fully Certified Physical Education and Recreation and Therapeutic Recreation Specialists ≠ Total Physical Education and Recreation and Therapeutic Recreation Specialists","") -> 
B26: FS099 | C26: Physical education and recreation and therapeutic recreation specialists | H26: =IF(ISERROR('Edit Check Details'!E24),"No Data",'Edit Check Details'!E24) ->  | J26: E25 | K26: =IF(H27="",0,IF(OR(H27="No Data",SUM('Edit Check Details'!C25:D25)<>'Edit Check Details'!E25),1,0)) -> 0 | M26: FS099 | O26: =IF(K26=1,"Fully Certified + Not Fully Certified Social Workers ≠ Total Social Workers","") -> 
B27: FS099 | C27: Social workers | H27: =IF(ISERROR('Edit Check Details'!E25),"No Data",'Edit Check Details'!E25) ->  | J27: E26 | K27: =IF(H28="",0,IF(OR(H28="No Data",SUM('Edit Check Details'!C26:D26)<>'Edit Check Details'!E26),1,0)) -> 0 | M27: FS099 | O27: =IF(K27=1,"Fully Certified + Not Fully Certified Medical/Nursing Service Staff ≠ Total Medical/Nursing Service Staff","") -> 
B28: FS099 | C28: Medical/nursing service staff | H28: =IF(ISERROR('Edit Check Details'!E26),"No Data",'Edit Check Details'!E26) ->  | J28: E27 | K28: =IF(H29="",0,IF(OR(H29="No Data",SUM('Edit Check Details'!C27:D27)<>'Edit Check Details'!E27),1,0)) -> 0 | M28: FS099 | O28: =IF(K28=1,"Fully Certified + Not Fully Certified Counselors and Rehabilitation Counselors ≠ Total Counselors and Rehabilitation Counselors","") -> 
B29: FS099 | C29: Counselors and rehabilitation counselors | H29: =IF(ISERROR('Edit Check Details'!E27),"No Data",'Edit Check Details'!E27) ->  | J29: E28 | K29: =IF(H30="",0,IF(OR(H30="No Data",SUM('Edit Check Details'!C28:D28)<>'Edit Check Details'!E28),1,0)) -> 0 | M29: FS099 | O29: =IF(K29=1,"Fully Certified + Not Fully Certified Orientation and Mobility Specialists ≠ Total Orientation and Mobility Specialists","") -> 
B30: FS099 | C30: Orientation and mobility specialists | H30: =IF(ISERROR('Edit Check Details'!E28),"No Data",'Edit Check Details'!E28) -> 
B32: FS112 — Special Education Paraprofessionals | O32: Error Messages | Z32: FS112 — Special Education Paraprofessionals
B33: File | C33: Special education paraprofessionals | H33: FTE | J33: E32 | K33: =IF(H34="",0,IF(OR(H34="No Data",SUM('Edit Check Details'!C32:D32)<>'Edit Check Details'!E32),1,0)) -> 0 | L33: =H34 ->  | M33: =B38 -> FS112 | O33: =IF(K33=1,"Qualified + Not Qualified Special Education Paraprofessionals for Ages 3-5PK ≠ Special Education Paraprofessionals for Ages 3-5PK","") ->  | Z33: File | AA33: Special Education Paraprofessionals | AF33: FTE
B34: FS112 | C34: Special education paraprofessionals for ages 3-5 | H34: =IF(ISERROR('Edit Check Details'!E32),"No Data",'Edit Check Details'!E32) ->  | J34: E33 | K34: =IF(H35="",0,IF(OR(H35="No Data",SUM('Edit Check Details'!C33:D33)<>'Edit Check Details'!E33),1,0)) -> 0 | L34: =H35 ->  | M34: =B34 -> FS112 | O34: =IF(K34=1,"Qualified + Not Qualified Special Education Paraprofessionals for Ages 5K-21 ≠ Special Education Paraprofessionals for Ages 5K-21","") -> 
B35: FS112 | C35: Special education paraprofessionals for ages 6-21 | H35: =IF(ISERROR('Edit Check Details'!E33),"No Data",'Edit Check Details'!E33) ->  | J35: C34 | K35: =IF(H36="",0,IF(OR(H36="No Data",SUM('Edit Check Details'!C32:C33)<>'Edit Check Details'!C34),1,0)) -> 0 | M35: =B35 -> FS112 | O35: =IF(K35=1,"Qualified Special Education Paraprofessionals for Ages 3-5PK + Ages 5K-21 ≠ Qualified Special Education Paraprofessionals for Ages 3-21","") -> 
B36: FS112 | C36: Qualified special education paraprofessionals for ages 3-21 | H36: =IF(ISERROR('Edit Check Details'!C34),"No Data",'Edit Check Details'!C34) ->  | J36: D34 | K36: =IF(H37="",0,IF(OR(H37="No Data",SUM('Edit Check Details'!D32:D33)<>'Edit Check Details'!D34),1,0)) -> 0 | M36: =B36 -> FS112 | O36: =IF(K36=1,"Not Qualified Special Education Paraprofessionals for Ages 3-5PK + Ages 5K-21 ≠ Not Qualified Special Education Paraprofessionals for Ages 3-21","") -> 
B37: FS112 | C37: Not qualified special education paraprofessionals for ages 3-21 | H37: =IF(ISERROR('Edit Check Details'!D34),"No Data",'Edit Check Details'!D34) ->  | J37: E34 | K37: =IF(H38="",0,IF(OR(H38="No Data",SUM('Edit Check Details'!C34:D34)<>'Edit Check Details'!E34),1,0)) -> 0 | M37: =B37 -> FS112 | O37: =IF(K37=1,"Qualified Special Education Paraprofessionals for Ages 3-21 + Not Qualified Special Education Paraprofessionals for Ages 3-21 ≠ Total Special Education Paraprofessionals Serving Children with Disabilities Ages 3-21","") -> 
B38: FS112 | C38: Total special education paraprofessionals serving children with disabilities ages 3-21 | H38: =IF(ISERROR('Edit Check Details'!E34),"No Data",'Edit Check Details'!E34) ->  | J38: E34 | K38: =IF(H38="",0,IF(OR(H38="No Data",SUM('Edit Check Details'!E32:E33)<>'Edit Check Details'!E34),1,0)) -> 0 | L38: =H38 ->  | M38: FS112 | O38: =IF(K38=1,"Special Education Paraprofessionals for Ages 3-5PK + Ages 5K-21 ≠ Total Special Education Paraprofessionals Serving Children with Disabilities Ages 3-21","") -> 
B39: End of worksheet

Sheet Edit Check Details
B1: ="IDEA LEA Personnel Data for School Year "&'Special Ed Teachers (FS070)'!E11&CHAR(10)&" "&'Select LEA'!C6 -> IDEA LEA Personnel Data for School Year | F1: End of worksheet
C3: Triggered edit checks
C4: Data file | E4: Count
C5: FS070 — Special Education Teachers (FTE) | E5: =VALUE('Data Summary'!H5) -> 0
C6: FS099 — Special Education Related Services Personnel | E6: =VALUE('Data Summary'!H6) -> 0
C7: FS112 — Special Education Paraprofessionals | E7: =VALUE('Data Summary'!H7) -> 0
C8: Total | E8: =SUM(E5:E7) -> 0 | O8: Link | P8: Triggered?
O9: E12 | P9: =IF(E12="",0,IF(SUM(C12:D12)<>E12,1,0)) -> 0
B10: FS070 — Special Education Teachers (FTE) | K10: FS070 — Special Education Teachers (FTE) | O10: E13 | P10: =IF(E13="",0,IF(SUM(C13:D13)<>E13,1,0)) -> 0
B11: Special education teachers | C11: Fully certified FTE | D11: Not fully certified FTE | E11: Total FTE | L11: Fully Certified FTE | M11: Not Fully Certified FTE | N11: Total FTE | O11: C14 | P11: =IF(C14="",0,IF(SUM(C12:C13)<>C14,1,0)) -> 0
B12: Special education teachers for ages 3-5 | C12: =IFERROR(HYPERLINK("#'Select LEA'!"&ADDRESS(ROW(INDEX(CurrentListing,MATCH(G12,CurrentListing,0),1)),13),L12),HYPERLINK("#'Select LEA'!"&"$O$10",L12)) ->  | D12: =IFERROR(HYPERLINK("#'Select LEA'!"&ADDRESS(ROW(INDEX(CurrentListing,MATCH(H12,CurrentListing,0),1)),13),M12),HYPERLINK("#'Select LEA'!"&"$O$10",M12)) ->  | E12: =IFERROR(HYPERLINK("#'Select LEA'!"&ADDRESS(ROW(INDEX(CurrentListing,MATCH(I12,CurrentListing,0),1)),13),N12),HYPERLINK("#'Select LEA'!"&"$O$10",N12)) ->  | G12: SPEDTCHFULCRT3TO5N | H12: SPEDTCHNFULCRT3TO5N | I12: 3TO5Y | K12: Special Education Teachers for Ages 3-5 | L12: =IFERROR(IF(INDEX(FTE_FS070,MATCH(G12,CurrentListing,0))="","No Data",INDEX(FTE_FS070,MATCH(G12,CurrentListing,0))),"") ->  | M12: =IFERROR(IF(INDEX(FTE_FS070,MATCH(H12,CurrentListing,0))="","No Data",INDEX(FTE_FS070,MATCH(H12,CurrentListing,0))),"") ->  | N12: =IFERROR(IF(INDEX(FTE_FS070,MATCH(I12,CurrentListing,0))="","No Data",INDEX(FTE_FS070,MATCH(I12,CurrentListing,0))),"") ->  | O12: D14 | P12: =IF(D14="",0,IF(SUM(D12:D13)<>D14,1,0)) -> 0
B13: Special education teachers for ages 6-21 | C13: =IFERROR(HYPERLINK("#'Select LEA'!"&ADDRESS(ROW(INDEX(CurrentListing,MATCH(G13,CurrentListing,0),1)),13),L13),HYPERLINK("#'Select LEA'!"&"$O$10",L13)) ->  | D13: =IFERROR(HYPERLINK("#'Select LEA'!"&ADDRESS(ROW(INDEX(CurrentListing,MATCH(H13,CurrentListing,0),1)),13),M13),HYPERLINK("#'Select LEA'!"&"$O$10",M13)) ->  | E13: =IFERROR(HYPERLINK("#'Select LEA'!"&ADDRESS(ROW(INDEX(CurrentListing,MATCH(I13,CurrentListing,0),1)),13),N13),HYPERLINK("#'Select LEA'!"&"$O$10",N13)) ->  | G13: SPEDTCHFULCRT6TO21N | H13: SPEDTCHNFULCRT6TO21N | I13: 6TO21Y | K13: Special Education Teachers for Ages 6-21 | L13: =IFERROR(IF(INDEX(FTE_FS070,MATCH(G13,CurrentListing,0))="","No Data",INDEX(FTE_FS070,MATCH(G13,CurrentListing,0))),"") ->  | M13: =IFERROR(IF(INDEX(FTE_FS070,MATCH(H13,CurrentListing,0))="","No Data",INDEX(FTE_FS070,MATCH(H13,CurrentListing,0))),"") ->  | N13: =IFERROR(IF(INDEX(FTE_FS070,MATCH(I13,CurrentListing,0))="","No Data",INDEX(FTE_FS070,MATCH(I13,CurrentListing,0))),"") ->  | O13: E14 | P13: =IF(E14="",0,IF(SUM(E12:E13)<>E14,1,0)) -> 0
B14: Total | C14: =IFERROR(HYPERLINK("#'Select LEA'!"&ADDRESS(ROW(INDEX(CurrentListing,MATCH(G14,CurrentListing,0),1)),13),L14),HYPERLINK("#'Select LEA'!"&"$O$10",L14)) ->  | D14: =IFERROR(HYPERLINK("#'Select LEA'!"&ADDRESS(ROW(INDEX(CurrentListing,MATCH(H14,CurrentListing,0),1)),13),M14),HYPERLINK("#'Select LEA'!"&"$O$10",M14)) ->  | E14: =IFERROR(HYPERLINK("#'Select LEA'!"&ADDRESS(ROW(INDEX(CurrentListing,MATCH(I14,CurrentListing,0),1)),13),N14),HYPERLINK("#'Select LEA'!"&"$O$10",N14)) ->  | G14: SPEDTCHFULCRTY | H14: SPEDTCHNFULCRTY | I14: Y | K14: Total | L14: =IFERROR(IF(INDEX(FTE_FS070,MATCH(G14,CurrentListing,0))="","No Data",INDEX(FTE_FS070,MATCH(G14,CurrentListing,0))),"") ->  | M14: =IFERROR(IF(INDEX(FTE_FS070,MATCH(H14,CurrentListing,0))="","No Data",INDEX(FTE_FS070,MATCH(H14,CurrentListing,0))),"") ->  | N14: =IFERROR(IF(INDEX(FTE_FS070,MATCH(I14,CurrentListing,0))="","No Data",INDEX(FTE_FS070,MATCH(I14,CurrentListing,0))),"") ->  | O14: E14 | P14: =IF(E14="",0,IF(SUM(C14:D14)<>E14,1,0)) -> 0
B16: FS099 — Special Education Related Services Personnel | K16: FS099 — Special Education Related Services Personnel
B17: Related services personnel | C17: Fully certified FTE | D17: Not fully certified FTE | E17: Total FTE | L17: Fully Certified FTE | M17: Not Fully Certified FTE | N17: Total FTE
B18: Audiologists | C18: =IFERROR(HYPERLINK("#'Select LEA'!"&ADDRESS(ROW(INDEX(CurrentListing_C099,MATCH(G18,CurrentListing_C099,0),1)),12),L18),HYPERLINK("#'Select LEA'!"&"$A$27",L18)) ->  | D18: =IFERROR(HYPERLINK("#'Select LEA'!"&ADDRESS(ROW(INDEX(CurrentListing_C099,MATCH(H18,CurrentListing_C099,0),1)),12),M18),HYPERLINK("#'Select LEA'!"&"$A$27",M18)) ->  | E18: =IFERROR(HYPERLINK("#'Select LEA'!"&ADDRESS(ROW(INDEX(CurrentListing_C099,MATCH(I18,CurrentListing_C099,0),1)),12),N18),HYPERLINK("#'Select LEA'!"&"$A$27",N18)) ->  | G18: AUDIOFCN | H18: AUDIONFCN | I18: AUDIOY | K18: Audiologists | L18: =IFERROR(IF(INDEX(FTE_FS099,MATCH(G18,CurrentListing_C099,0))="","No Data",INDEX(FTE_FS099,MATCH(G18,CurrentListing_C099,0))),"") ->  | M18: =IFERROR(IF(INDEX(FTE_FS099,MATCH(H18,CurrentListing_C099,0))="","No Data",INDEX(FTE_FS099,MATCH(H18,CurrentListing_C099,0))),"") ->  | N18: =IFERROR(IF(INDEX(FTE_FS099,MATCH(I18,CurrentListing_C099,0))="","No Data",INDEX(FTE_FS099,MATCH(I18,CurrentListing_C099,0))),"") ->  | O18: E18 | P18: =IF(E18="",0,IF(SUM(C18:D18)<>E18,1,0)) -> 0
B19: Speech-language pathologists | C19: =IFERROR(HYPERLINK("#'Select LEA'!"&ADDRESS(ROW(INDEX(CurrentListing_C099,MATCH(G19,CurrentListing_C099,0),1)),12),L19),HYPERLINK("#'Select LEA'!"&"$A$27",L19)) ->  | D19: =IFERROR(HYPERLINK("#'Select LEA'!"&ADDRESS(ROW(INDEX(CurrentListing_C099,MATCH(H19,CurrentListing_C099,0),1)),12),M19),HYPERLINK("#'Select LEA'!"&"$A$27",M19)) ->  | E19: =IFERROR(HYPERLINK("#'Select LEA'!"&ADDRESS(ROW(INDEX(CurrentListing_C099,MATCH(I19,CurrentListing_C099,0),1)),12),N19),HYPERLINK("#'Select LEA'!"&"$A$27",N19)) ->  | G19: SPEECHPATHFCN | H19: SPEECHPATHNFCN | I19: SPEECHPATHY | K19: Speech-Language Pathologists | L19: =IFERROR(IF(INDEX(FTE_FS099,MATCH(G19,CurrentListing_C099,0))="","No Data",INDEX(FTE_FS099,MATCH(G19,CurrentListing_C099,0))),"") ->  | M19: =IFERROR(IF(INDEX(FTE_FS099,MATCH(H19,CurrentListing_C099,0))="","No Data",INDEX(FTE_FS099,MATCH(H19,CurrentListing_C099,0))),"") ->  | N19: =IFERROR(IF(INDEX(FTE_FS099,MATCH(I19,CurrentListing_C099,0))="","No Data",INDEX(FTE_FS099,MATCH(I19,CurrentListing_C099,0))),"") ->  | O19: E19 | P19: 0
B20: Interpreters | C20: =IFERROR(HYPERLINK("#'Select LEA'!"&ADDRESS(ROW(INDEX(CurrentListing_C099,MATCH(G20,CurrentListing_C099,0),1)),12),L20),HYPERLINK("#'Select LEA'!"&"$A$27",L20)) ->  | D20: =IFERROR(HYPERLINK("#'Select LEA'!"&ADDRESS(ROW(INDEX(CurrentListing_C099,MATCH(H20,CurrentListing_C099,0),1)),12),M20),HYPERLINK("#'Select LEA'!"&"$A$27",M20)) ->  | E20: =IFERROR(HYPERLINK("#'Select LEA'!"&ADDRESS(ROW(INDEX(CurrentListing_C099,MATCH(I20,CurrentListing_C099,0),1)),12),N20),HYPERLINK("#'Select LEA'!"&"$A$27",N20)) ->  | G20: INTERPRETFCN | H20: INTERPRETNFCN | I20: INTERPRETY | K20: Interpreters | L20: =IFERROR(IF(INDEX(FTE_FS099,MATCH(G20,CurrentListing_C099,0))="","No Data",INDEX(FTE_FS099,MATCH(G20,CurrentListing_C099,0))),"") ->  | M20: =IFERROR(IF(INDEX(FTE_FS099,MATCH(H20,CurrentListing_C099,0))="","No Data",INDEX(FTE_FS099,MATCH(H20,CurrentListing_C099,0))),"") ->  | N20: =IFERROR(IF(INDEX(FTE_FS099,MATCH(I20,CurrentListing_C099,0))="","No Data",INDEX(FTE_FS099,MATCH(I20,CurrentListing_C099,0))),"") ->  | O20: E20 | P20: 0
B21: Psychologists | C21: =IFERROR(HYPERLINK("#'Select LEA'!"&ADDRESS(ROW(INDEX(CurrentListing_C099,MATCH(G21,CurrentListing_C099,0),1)),12),L21),HYPERLINK("#'Select LEA'!"&"$A$27",L21)) ->  | D21: =IFERROR(HYPERLINK("#'Select LEA'!"&ADDRESS(ROW(INDEX(CurrentListing_C099,MATCH(H21,CurrentListing_C099,0),1)),12),M21),HYPERLINK("#'Select LEA'!"&"$A$27",M21)) ->  | E21: =IFERROR(HYPERLINK("#'Select LEA'!"&ADDRESS(ROW(INDEX(CurrentListing_C099,MATCH(I21,CurrentListing_C099,0),1)),12),N21),HYPERLINK("#'Select LEA'!"&"$A$27",N21)) ->  | G21: PSYCHFCN | H21: PSYCHNFCN | I21: PSYCHY | K21: Psychologists | L21: =IFERROR(IF(INDEX(FTE_FS099,MATCH(G21,CurrentListing_C099,0))="","No Data",INDEX(FTE_FS099,MATCH(G21,CurrentListing_C099,0))),"") ->  | M21: =IFERROR(IF(INDEX(FTE_FS099,MATCH(H21,CurrentListing_C099,0))="","No Data",INDEX(FTE_FS099,MATCH(H21,CurrentListing_C099,0))),"") ->  | N21: =IFERROR(IF(INDEX(FTE_FS099,MATCH(I21,CurrentListing_C099,0))="","No Data",INDEX(FTE_FS099,MATCH(I21,CurrentListing_C099,0))),"") ->  | O21: E21 | P21: 0
B22: Occupational therapists | C22: =IFERROR(HYPERLINK("#'Select LEA'!"&ADDRESS(ROW(INDEX(CurrentListing_C099,MATCH(G22,CurrentListing_C099,0),1)),12),L22),HYPERLINK("#'Select LEA'!"&"$A$27",L22)) ->  | D22: =IFERROR(HYPERLINK("#'Select LEA'!"&ADDRESS(ROW(INDEX(CurrentListing_C099,MATCH(H22,CurrentListing_C099,0),1)),12),M22),HYPERLINK("#'Select LEA'!"&"$A$27",M22)) ->  | E22: =IFERROR(HYPERLINK("#'Select LEA'!"&ADDRESS(ROW(INDEX(CurrentListing_C099,MATCH(I22,CurrentListing_C099,0),1)),12),N22),HYPERLINK("#'Select LEA'!"&"$A$27",N22)) ->  | G22: OCCTHERAPFCN | H22: OCCTHERAPNFCN | I22: OCCTHERAPY | K22: Occupational Therapists | L22: =IFERROR(IF(INDEX(FTE_FS099,MATCH(G22,CurrentListing_C099,0))="","No Data",INDEX(FTE_FS099,MATCH(G22,CurrentListing_C099,0))),"") ->  | M22: =IFERROR(IF(INDEX(FTE_FS099,MATCH(H22,CurrentListing_C099,0))="","No Data",INDEX(FTE_FS099,MATCH(H22,CurrentListing_C099,0))),"") ->  | N22: =IFERROR(IF(INDEX(FTE_FS099,MATCH(I22,CurrentListing_C099,0))="","No Data",INDEX(FTE_FS099,MATCH(I22,CurrentListing_C099,0))),"") ->  | O22: E22 | P22: 0
B23: Physical therapists | C23: =IFERROR(HYPERLINK("#'Select LEA'!"&ADDRESS(ROW(INDEX(CurrentListing_C099,MATCH(G23,CurrentListing_C099,0),1)),12),L23),HYPERLINK("#'Select LEA'!"&"$A$27",L23)) ->  | D23: =IFERROR(HYPERLINK("#'Select LEA'!"&ADDRESS(ROW(INDEX(CurrentListing_C099,MATCH(H23,CurrentListing_C099,0),1)),12),M23),HYPERLINK("#'Select LEA'!"&"$A$27",M23)) ->  | E23: =IFERROR(HYPERLINK("#'Select LEA'!"&ADDRESS(ROW(INDEX(CurrentListing_C099,MATCH(I23,CurrentListing_C099,0),1)),12),N23),HYPERLINK("#'Select LEA'!"&"$A$27",N23)) ->  | G23: PHYSTHERAPFCN | H23: PHYSTHERAPNFCN | I23: PHYSTHERAPY | K23: Physical Therapists | L23: =IFERROR(IF(INDEX(FTE_FS099,MATCH(G23,CurrentListing_C099,0))="","No Data",INDEX(FTE_FS099,MATCH(G23,CurrentListing_C099,0))),"") ->  | M23: =IFERROR(IF(INDEX(FTE_FS099,MATCH(H23,CurrentListing_C099,0))="","No Data",INDEX(FTE_FS099,MATCH(H23,CurrentListing_C099,0))),"") ->  | N23: =IFERROR(IF(INDEX(FTE_FS099,MATCH(I23,CurrentListing_C099,0))="","No Data",INDEX(FTE_FS099,MATCH(I23,CurrentListing_C099,0))),"") ->  | O23: E23 | P23: 0
B24: Physical education and recreation and therapeutic recreation specialists | C24: =IFERROR(HYPERLINK("#'Select LEA'!"&ADDRESS(ROW(INDEX(CurrentListing_C099,MATCH(G24,CurrentListing_C099,0),1)),12),L24),HYPERLINK("#'Select LEA'!"&"$A$27",L24)) ->  | D24: =IFERROR(HYPERLINK("#'Select LEA'!"&ADDRESS(ROW(INDEX(CurrentListing_C099,MATCH(H24,CurrentListing_C099,0),1)),12),M24),HYPERLINK("#'Select LEA'!"&"$A$27",M24)) ->  | E24: =IFERROR(HYPERLINK("#'Select LEA'!"&ADDRESS(ROW(INDEX(CurrentListing_C099,MATCH(I24,CurrentListing_C099,0),1)),12),N24),HYPERLINK("#'Select LEA'!"&"$A$27",N24)) ->  | G24: PEANDRECFCN | H24: PEANDRECNFCN | I24: PEANDRECY | K24: Physical Education and Recreation and Therapeutic Recreation Specialists | L24: =IFERROR(IF(INDEX(FTE_FS099,MATCH(G24,CurrentListing_C099,0))="","No Data",INDEX(FTE_FS099,MATCH(G24,CurrentListing_C099,0))),"") ->  | M24: =IFERROR(IF(INDEX(FTE_FS099,MATCH(H24,CurrentListing_C099,0))="","No Data",INDEX(FTE_FS099,MATCH(H24,CurrentListing_C099,0))),"") ->  | N24: =IFERROR(IF(INDEX(FTE_FS099,MATCH(I24,CurrentListing_C099,0))="","No Data",INDEX(FTE_FS099,MATCH(I24,CurrentListing_C099,0))),"") ->  | O24: E24 | P24: 0
B25: Social workers | C25: =IFERROR(HYPERLINK("#'Select LEA'!"&ADDRESS(ROW(INDEX(CurrentListing_C099,MATCH(G25,CurrentListing_C099,0),1)),12),L25),HYPERLINK("#'Select LEA'!"&"$A$27",L25)) ->  | D25: =IFERROR(HYPERLINK("#'Select LEA'!"&ADDRESS(ROW(INDEX(CurrentListing_C099,MATCH(H25,CurrentListing_C099,0),1)),12),M25),HYPERLINK("#'Select LEA'!"&"$A$27",M25)) ->  | E25: =IFERROR(HYPERLINK("#'Select LEA'!"&ADDRESS(ROW(INDEX(CurrentListing_C099,MATCH(I25,CurrentListing_C099,0),1)),12),N25),HYPERLINK("#'Select LEA'!"&"$A$27",N25)) ->  | G25: SOCIALWORKFCN | H25: SOCIALWORKNFCN | I25: SOCIALWORKY | K25: Social Workers | L25: =IFERROR(IF(INDEX(FTE_FS099,MATCH(G25,CurrentListing_C099,0))="","No Data",INDEX(FTE_FS099,MATCH(G25,CurrentListing_C099,0))),"") ->  | M25: =IFERROR(IF(INDEX(FTE_FS099,MATCH(H25,CurrentListing_C099,0))="","No Data",INDEX(FTE_FS099,MATCH(H25,CurrentListing_C099,0))),"") ->  | N25: =IFERROR(IF(INDEX(FTE_FS099,MATCH(I25,CurrentListing_C099,0))="","No Data",INDEX(FTE_FS099,MATCH(I25,CurrentListing_C099,0))),"") ->  | O25: E25 | P25: 0
B26: Medical/nursing service staff | C26: =IFERROR(HYPERLINK("#'Select LEA'!"&ADDRESS(ROW(INDEX(CurrentListing_C099,MATCH(G26,CurrentListing_C099,0),1)),12),L26),HYPERLINK("#'Select LEA'!"&"$A$27",L26)) ->  | D26: =IFERROR(HYPERLINK("#'Select LEA'!"&ADDRESS(ROW(INDEX(CurrentListing_C099,MATCH(H26,CurrentListing_C099,0),1)),12),M26),HYPERLINK("#'Select LEA'!"&"$A$27",M26)) ->  | E26: =IFERROR(HYPERLINK("#'Select LEA'!"&ADDRESS(ROW(INDEX(CurrentListing_C099,MATCH(I26,CurrentListing_C099,0),1)),12),N26),HYPERLINK("#'Select LEA'!"&"$A$27",N26)) ->  | G26: MEDNURSEFCN | H26: MEDNURSENFCN | I26: MEDNURSEY | K26: Medical/Nursing Service Staff | L26: =IFERROR(IF(INDEX(FTE_FS099,MATCH(G26,CurrentListing_C099,0))="","No Data",INDEX(FTE_FS099,MATCH(G26,CurrentListing_C099,0))),"") ->  | M26: =IFERROR(IF(INDEX(FTE_FS099,MATCH(H26,CurrentListing_C099,0))="","No Data",INDEX(FTE_FS099,MATCH(H26,CurrentListing_C099,0))),"") ->  | N26: =IFERROR(IF(INDEX(FTE_FS099,MATCH(I26,CurrentListing_C099,0))="","No Data",INDEX(FTE_FS099,MATCH(I26,CurrentListing_C099,0))),"") ->  | O26: E26 | P26: 0
B27: Counselors and rehabilitation counselors | C27: =IFERROR(HYPERLINK("#'Select LEA'!"&ADDRESS(ROW(INDEX(CurrentListing_C099,MATCH(G27,CurrentListing_C099,0),1)),12),L27),HYPERLINK("#'Select LEA'!"&"$A$27",L27)) ->  | D27: =IFERROR(HYPERLINK("#'Select LEA'!"&ADDRESS(ROW(INDEX(CurrentListing_C099,MATCH(H27,CurrentListing_C099,0),1)),12),M27),HYPERLINK("#'Select LEA'!"&"$A$27",M27)) ->  | E27: =IFERROR(HYPERLINK("#'Select LEA'!"&ADDRESS(ROW(INDEX(CurrentListing_C099,MATCH(I27,CurrentListing_C099,0),1)),12),N27),HYPERLINK("#'Select LEA'!"&"$A$27",N27)) ->  | G27: COUNSELORFCN | H27: COUNSELORNFCN | I27: COUNSELORY | K27: Counselors and Rehabilitation Counselors | L27: =IFERROR(IF(INDEX(FTE_FS099,MATCH(G27,CurrentListing_C099,0))="","No Data",INDEX(FTE_FS099,MATCH(G27,CurrentListing_C099,0))),"") ->  | M27: =IFERROR(IF(INDEX(FTE_FS099,MATCH(H27,CurrentListing_C099,0))="","No Data",INDEX(FTE_FS099,MATCH(H27,CurrentListing_C099,0))),"") ->  | N27: =IFERROR(IF(INDEX(FTE_FS099,MATCH(I27,CurrentListing_C099,0))="","No Data",INDEX(FTE_FS099,MATCH(I27,CurrentListing_C099,0))),"") ->  | O27: E27 | P27: 0
B28: Orientation and mobility specialists | C28: =IFERROR(HYPERLINK("#'Select LEA'!"&ADDRESS(ROW(INDEX(CurrentListing_C099,MATCH(G28,CurrentListing_C099,0),1)),12),L28),HYPERLINK("#'Select LEA'!"&"$A$27",L28)) ->  | D28: =IFERROR(HYPERLINK("#'Select LEA'!"&ADDRESS(ROW(INDEX(CurrentListing_C099,MATCH(H28,CurrentListing_C099,0),1)),12),M28),HYPERLINK("#'Select LEA'!"&"$A$27",M28)) ->  | E28: =IFERROR(HYPERLINK("#'Select LEA'!"&ADDRESS(ROW(INDEX(CurrentListing_C099,MATCH(I28,CurrentListing_C099,0),1)),12),N28),HYPERLINK("#'Select LEA'!"&"$A$27",N28)) ->  | G28: ORIENTMOBILFCN | H28: ORIENTMOBILNFCN | I28: ORIENTMOBILY | K28: Orientation and Mobility Specialists | L28: =IFERROR(IF(INDEX(FTE_FS099,MATCH(G28,CurrentListing_C099,0))="","No Data",INDEX(FTE_FS099,MATCH(G28,CurrentListing_C099,0))),"") ->  | M28: =IFERROR(IF(INDEX(FTE_FS099,MATCH(H28,CurrentListing_C099,0))="","No Data",INDEX(FTE_FS099,MATCH(H28,CurrentListing_C099,0))),"") ->  | N28: =IFERROR(IF(INDEX(FTE_FS099,MATCH(I28,CurrentListing_C099,0))="","No Data",INDEX(FTE_FS099,MATCH(I28,CurrentListing_C099,0))),"") ->  | O28: E28 | P28: 0
B30: FS112 — Special Education Paraprofessionals | K30: FS112 — Special Education Paraprofessionals | O30: E32 | P30: =IF(E32="",0,IF(SUM(C32:D32)<>E32,1,0)) -> 0
B31: Paraprofessionals | C31: Qualified FTE | D31: Not qualified FTE | E31: Total FTE | L31: Qualified FTE | M31: Not Qualified FTE | N31: Total FTE | O31: E33 | P31: =IF(E33="",0,IF(SUM(C33:D33)<>E33,1,0)) -> 0
B32: Special education paraprofessionals for ages 3-5 | C32: =IFERROR(HYPERLINK("#'Select LEA'!"&ADDRESS(ROW(INDEX(CurrentListing_C112,MATCH(G32,CurrentListing_C112,0),1)),13),L32),HYPERLINK("#'Select LEA'!"&"$O$10",L32)) ->  | G32: 3TO5QN | H32: 3TO5NQN | I32: 3TO5Y | K32: Special Education Paraprofessionals for Ages 3-5 | L32: =IFERROR(IF(INDEX(FTE_FS112,MATCH(G32,CurrentListing_C112,0))="","No Data",INDEX(FTE_FS112,MATCH(G32,CurrentListing_C112,0))),"") ->  | M32: =IFERROR(IF(INDEX(FTE_FS112,MATCH(H32,CurrentListing_C112,0))="","No Data",INDEX(FTE_FS112,MATCH(H32,CurrentListing_C112,0))),"") ->  | N32: =IFERROR(IF(INDEX(FTE_FS112,MATCH(I32,CurrentListing_C112,0))="","No Data",INDEX(FTE_FS112,MATCH(I32,CurrentListing_C112,0))),"") ->  | O32: C34 | P32: =IF(C34="",0,IF(SUM(C32:C33)<>C34,1,0)) -> 0
B33: Special education paraprofessionals for ages 6-21 | G33: 6TO21QN | H33: 6TO21NQN | I33: 6TO21Y | K33: Special Education Paraprofessionals for Ages 6-21 | L33: =IFERROR(IF(INDEX(FTE_FS112,MATCH(G33,CurrentListing_C112,0))="","No Data",INDEX(FTE_FS112,MATCH(G33,CurrentListing_C112,0))),"") ->  | M33: =IFERROR(IF(INDEX(FTE_FS112,MATCH(H33,CurrentListing_C112,0))="","No Data",INDEX(FTE_FS112,MATCH(H33,CurrentListing_C112,0))),"") ->  | N33: =IFERROR(IF(INDEX(FTE_FS112,MATCH(I33,CurrentListing_C112,0))="","No Data",INDEX(FTE_FS112,MATCH(I33,CurrentListing_C112,0))),"") ->  | O33: D34 | P33: =IF(D34="",0,IF(SUM(D32:D33)<>D34,1,0)) -> 0
B34: Total | G34: QY | H34: NQY | I34: Y | K34: Total | L34: =IFERROR(IF(INDEX(FTE_FS112,MATCH(G34,CurrentListing_C112,0))="","No Data",INDEX(FTE_FS112,MATCH(G34,CurrentListing_C112,0))),"") ->  | M34: =IFERROR(IF(INDEX(FTE_FS112,MATCH(H34,CurrentListing_C112,0))="","No Data",INDEX(FTE_FS112,MATCH(H34,CurrentListing_C112,0))),"") ->  | N34: =IFERROR(IF(INDEX(FTE_FS112,MATCH(I34,CurrentListing_C112,0))="","No Data",INDEX(FTE_FS112,MATCH(I34,CurrentListing_C112,0))),"") ->  | O34: E34 | P34: =IF(E34="",0,IF(SUM(E32:E33)<>E34,1,0)) -> 0
O35: E34 | P35: =IF(E34="",0,IF(SUM(C34:D34)<>E34,1,0)) -> 0
C52: =HYPERLINK("#'Related Services Pers. (C099)'!"&ADDRESS(ROW(INDEX(CurrentListing_C099,MATCH(I28,MasterListing_C099,0),1)),17),N28)
